{"text_format":"1","workbook":"xlsx","n_sheets":4,"sheets":["Základní údaje","Rozpis úklidu","Karty úklidu","Činnosti úklidu"],"not_rendered":{"charts":0,"images":0,"macros":1,"external_links":0,"defined_names":3,"comments":3,"pivot_tables":0},"unopened":[],"bounds":{"document_bytes":16777216,"sheet_cells":100000,"rows_first":2000,"rows_last":500,"rows_between":2000,"halvings":0,"cell_chars":16384,"cell_head_chars":4096},"cells_cut":0,"cells_raw":0,"read":"whole","date_system":"1900"}

{"sheet":"Základní údaje","index":0,"n_rows":15,"n_cols":8,"rows_kept":15,"cut":false,"hidden":false,"merged":[[8,3,8,6],[1,0,1,1]]}
["kolej: Rooseveltova, VŠE"]
["OBDOBÍ:"]
["2022-08-01","2026-07-31"]
["Identifikace subjektu podávajícího nabídku:"]
["Název subjektu:"]
["IČ:"]
["Sídlo:"]
["Zapsaná v:"]
[null,null,null,"Předpoklad roční inflace"]
[null,null,null,"1. rok","2. rok","3. rok","4. rok"]
["CENA pracovní dny [Kč/hodinu/člověka]:",null,{"$f":"IF(B11<>0,B12/B11,0)","v":0},0,0,0,0]
["CENA víkendy [Kč/hodinu/člověka]:",null,{"$f":"IF(B11<>0,(5*B11+2*B12)/7/B11,0)","v":0},1,{"$f":"1+E11","v":1},{"$f":"1+F11","v":1},1]
[null,null,null,1,{"$f":"+D13*E12","v":1},{"$f":"+E13*F12","v":1},1,{"$f":"SUM(D13:G13)/4","v":1}]
[]
["NABÍDKOVÁ CENA CELKEM ZA ZAKÁZKU:",{"$f":"'Rozpis úklidu'!B64:D64","v":0}]

{"sheet":"Rozpis úklidu","index":1,"n_rows":135,"n_cols":19,"rows_kept":135,"cut":false,"hidden":false,"merged":[[63,1,63,3]]}
[{"$f":"'Základní údaje'!A1","v":"kolej: Rooseveltova, VŠE"},{"$f":"'Základní údaje'!A2","v":"OBDOBÍ:"},{"$f":"'Základní údaje'!A3","v":"2022-08-01"},{"$f":"'Základní údaje'!B3","v":"2026-07-31"}]
["Cena za 1 úklidovou hodinu:",{"$f":"'Základní údaje'!B11","v":0},"Kč/hod."]
["Úklidová jednotka","plocha\n[m²]","kusy\n[-]","počet\núklidových jednotek","CELKEM\n[m²]\n[ks]","uklízí se","počet úklidů","sezonní\ntýden\nod","sezonní\ntýden\ndo","uklízí se v\npracovní dny","uklízí se o\nvíkendech","Popis činnosti","doporučený čas na úklidovou jednotku\n[min]","Navrhovaný čas na úklidovou jednotku\n[min.]","celkový čas úklidu všech úklidových jednotek\n[hod.]","Cena za úklidovou jednotku\n[Kč]","cena celkem za všechny úklidové jednotky \n(prac. dny)\n[Kč]","Cena celkem za období úklidu\n[Kč]","Poznámka"]
["výtah velký",null,1,1,{"$f":"B4*D4+C4*D4","v":1},"denně",1,null,null,1,0,"Úklidová činnost č. 11",10,null,{"$f":"IF(N4=0,M4*D4/60,N4*D4/60)","v":0.16666666666666666},{"$f":"ROUND(IF(N4=0,M4/60*$B$2,N4/60*$B$2),0)","v":0},{"$f":"P4*D4","v":0},{"$f":"IF(F4=\"denně\",Q4*G4*$B$60,IF(F4=\"týdně\",Q4*G4*$B$61,IF(F4=\"měsíčně\",Q4*G4*$B$62,IF(F4=\"čtvrtletně\",Q4*G4*4*$B$63,IF(F4=\"ročně\",Q4*G4*$B$63,G4*Q4*$B$63)))))*'Základní údaje'!$H$13*IF(K23=1,'Základní údaje'!$C$12,1)","v":0}]
["výtah malý",null,1,1,1,"denně",1,null,null,1,0,"Úklidová činnost č. 11",8,null,0.13333333333333333,0,{"$f":"P5*D5","v":0},{"$f":"IF(F5=\"denně\",Q5*G5*$B$60,IF(F5=\"týdně\",Q5*G5*$B$61,IF(F5=\"měsíčně\",Q5*G5*$B$62,IF(F5=\"čtvrtletně\",Q5*G5*4*$B$63,IF(F5=\"ročně\",Q5*G5*$B$63,G5*Q5*$B$63)))))*'Základní údaje'!$H$13*IF(K24=1,'Základní údaje'!$C$12,1)","v":0}]
["patro chodba 2.-6.NP",107,null,5,535,"denně",1,null,null,1,0,"Úklidová činnost č, 1",18,null,1.5,0,0,{"$f":"IF(F6=\"denně\",Q6*G6*$B$60,IF(F6=\"týdně\",Q6*G6*$B$61,IF(F6=\"měsíčně\",Q6*G6*$B$62,IF(F6=\"čtvrtletně\",Q6*G6*4*$B$63,IF(F6=\"ročně\",Q6*G6*$B$63,G6*Q6*$B$63)))))*'Základní údaje'!$H$13*IF(K25=1,'Základní údaje'!$C$12,1)","v":0}]
["patro chodba 7. NP",97,null,1,97,"denně",1,null,null,1,0,"Úklidová činnost č, 1",16,null,0.26666666666666666,0,0,{"$f":"IF(F7=\"denně\",Q7*G7*$B$60,IF(F7=\"týdně\",Q7*G7*$B$61,IF(F7=\"měsíčně\",Q7*G7*$B$62,IF(F7=\"čtvrtletně\",Q7*G7*4*$B$63,IF(F7=\"ročně\",Q7*G7*$B$63,G7*Q7*$B$63)))))*'Základní údaje'!$H$13*IF(K26=1,'Základní údaje'!$C$12,1)","v":0}]
["patro chodba 1. NP",156,null,1,156,"denně",1,null,null,1,0,"Úklidová činnost č, 1",26,null,0.43333333333333335,0,0,{"$f":"IF(F8=\"denně\",Q8*G8*$B$60,IF(F8=\"týdně\",Q8*G8*$B$61,IF(F8=\"měsíčně\",Q8*G8*$B$62,IF(F8=\"čtvrtletně\",Q8*G8*4*$B$63,IF(F8=\"ročně\",Q8*G8*$B$63,G8*Q8*$B$63)))))*'Základní údaje'!$H$13*IF(K27=1,'Základní údaje'!$C$12,1)","v":0}]
["schodiště",40,null,7,280,"denně",1,null,null,1,0,"Úklidová činnost č, 1",10,null,1.1666666666666667,0,0,{"$f":"IF(F9=\"denně\",Q9*G9*$B$60,IF(F9=\"týdně\",Q9*G9*$B$61,IF(F9=\"měsíčně\",Q9*G9*$B$62,IF(F9=\"čtvrtletně\",Q9*G9*4*$B$63,IF(F9=\"ročně\",Q9*G9*$B$63,G9*Q9*$B$63)))))*'Základní údaje'!$H$13*IF(K28=1,'Základní údaje'!$C$12,1)","v":0}]
["tv místnost",49,null,1,49,"denně",1,null,null,1,0,"Úklidová činnost č. 3",12,null,0.2,0,0,{"$f":"IF(F10=\"denně\",Q10*G10*$B$60,IF(F10=\"týdně\",Q10*G10*$B$61,IF(F10=\"měsíčně\",Q10*G10*$B$62,IF(F10=\"čtvrtletně\",Q10*G10*4*$B$63,IF(F10=\"ročně\",Q10*G10*$B$63,G10*Q10*$B$63)))))*'Základní údaje'!$H$13*IF(K33=1,'Základní údaje'!$C$12,1)","v":0}]
["posilovna",40,null,1,40,"denně",1,null,null,1,0,"Úklidová činnost č. 3",20,null,0.33333333333333331,0,0,{"$f":"IF(F11=\"denně\",Q11*G11*$B$60,IF(F11=\"týdně\",Q11*G11*$B$61,IF(F11=\"měsíčně\",Q11*G11*$B$62,IF(F11=\"čtvrtletně\",Q11*G11*4*$B$63,IF(F11=\"ročně\",Q11*G11*$B$63,G11*Q11*$B$63)))))*'Základní údaje'!$H$13*IF(K34=1,'Základní údaje'!$C$12,1)","v":0}]
["studovna",27,null,1,27,"denně",1,null,null,1,0,"Úklidová činnost č. 3",10,null,0.16666666666666666,0,0,{"$f":"IF(F12=\"denně\",Q12*G12*$B$60,IF(F12=\"týdně\",Q12*G12*$B$61,IF(F12=\"měsíčně\",Q12*G12*$B$62,IF(F12=\"čtvrtletně\",Q12*G12*4*$B$63,IF(F12=\"ročně\",Q12*G12*$B$63,G12*Q12*$B$63)))))*'Základní údaje'!$H$13*IF(K35=1,'Základní údaje'!$C$12,1)","v":0}]
["sušárna + prádelna",15,null,1,15,"denně",1,null,null,1,0,"Úklidová činnost č. 4",15,null,0.25,0,0,{"$f":"IF(F13=\"denně\",Q13*G13*$B$60,IF(F13=\"týdně\",Q13*G13*$B$61,IF(F13=\"měsíčně\",Q13*G13*$B$62,IF(F13=\"čtvrtletně\",Q13*G13*4*$B$63,IF(F13=\"ročně\",Q13*G13*$B$63,G13*Q13*$B$63)))))*'Základní údaje'!$H$13*IF(K36=1,'Základní údaje'!$C$12,1)","v":0}]
["WC suterén",null,1,2,2,"denně",1,null,null,1,0,"Úklidová činnost č. 14",8,null,0.26666666666666666,0,0,{"$f":"IF(F14=\"denně\",Q14*G14*$B$60,IF(F14=\"týdně\",Q14*G14*$B$61,IF(F14=\"měsíčně\",Q14*G14*$B$62,IF(F14=\"čtvrtletně\",Q14*G14*4*$B$63,IF(F14=\"ročně\",Q14*G14*$B$63,G14*Q14*$B$63)))))*'Základní údaje'!$H$13*IF(K37=1,'Základní údaje'!$C$12,1)","v":0}]
["HYGIENICKÉ ZÁZEMÍ 1. NP",35,null,1,35,"denně",1,null,null,1,0,"Úklidová činnost č. 14 a 15",10,null,0.16666666666666666,0,0,{"$f":"IF(F15=\"denně\",Q15*G15*$B$60,IF(F15=\"týdně\",Q15*G15*$B$61,IF(F15=\"měsíčně\",Q15*G15*$B$62,IF(F15=\"čtvrtletně\",Q15*G15*4*$B$63,IF(F15=\"ročně\",Q15*G15*$B$63,G15*Q15*$B$63)))))*'Základní údaje'!$H$13*IF(K38=1,'Základní údaje'!$C$12,1)","v":0}]
["WC + sprcha 1.-7. NP",27,null,14,378,"denně",1,null,null,1,0,"Úklidová činnost č. 14",25,null,5.833333333333333,0,0,{"$f":"IF(F16=\"denně\",Q16*G16*$B$60,IF(F16=\"týdně\",Q16*G16*$B$61,IF(F16=\"měsíčně\",Q16*G16*$B$62,IF(F16=\"čtvrtletně\",Q16*G16*4*$B$63,IF(F16=\"ročně\",Q16*G16*$B$63,G16*Q16*$B$63)))))*'Základní údaje'!$H$13*IF(K42=1,'Základní údaje'!$C$12,1)","v":0}]
["kuchyňky 1.-7. NP",11,null,13,143,"denně",1,null,null,1,0,"Úklidová činnost č. 5",20,null,4.333333333333333,0,0,{"$f":"IF(F17=\"denně\",Q17*G17*$B$60,IF(F17=\"týdně\",Q17*G17*$B$61,IF(F17=\"měsíčně\",Q17*G17*$B$62,IF(F17=\"čtvrtletně\",Q17*G17*4*$B$63,IF(F17=\"ročně\",Q17*G17*$B$63,G17*Q17*$B$63)))))*'Základní údaje'!$H$13*IF(K43=1,'Základní údaje'!$C$12,1)","v":0}]
["obyvák",100,null,1,100,"týdně",1,null,null,1,0,"Úklidová činnost č. 3",40,null,0.66666666666666663,0,0,{"$f":"IF(F18=\"denně\",Q18*G18*$B$60,IF(F18=\"týdně\",Q18*G18*$B$61,IF(F18=\"měsíčně\",Q18*G18*$B$62,IF(F18=\"čtvrtletně\",Q18*G18*4*$B$63,IF(F18=\"ročně\",Q18*G18*$B$63,G18*Q18*$B$63)))))*'Základní údaje'!$H$13*IF(K44=1,'Základní údaje'!$C$12,1)","v":0}]
["herní místnost",50,null,1,50,"týdně",1,null,null,1,0,"Úklidová činnost č. 3",30,null,0.5,0,0,{"$f":"IF(F19=\"denně\",Q19*G19*$B$60,IF(F19=\"týdně\",Q19*G19*$B$61,IF(F19=\"měsíčně\",Q19*G19*$B$62,IF(F19=\"čtvrtletně\",Q19*G19*4*$B$63,IF(F19=\"ročně\",Q19*G19*$B$63,G19*Q19*$B$63)))))*'Základní údaje'!$H$13*IF(K46=1,'Základní údaje'!$C$12,1)","v":0}]
["výtah velký - týdení úklid",null,1,1,1,"týdně",1,null,null,1,0,"Úklidová činnost č. 11",15,null,0.25,0,0,{"$f":"IF(F20=\"denně\",Q20*G20*$B$60,IF(F20=\"týdně\",Q20*G20*$B$61,IF(F20=\"měsíčně\",Q20*G20*$B$62,IF(F20=\"čtvrtletně\",Q20*G20*4*$B$63,IF(F20=\"ročně\",Q20*G20*$B$63,G20*Q20*$B$63)))))*'Základní údaje'!$H$13*IF(K47=1,'Základní údaje'!$C$12,1)","v":0}]
["výtah malý - týdenní úklid",null,1,1,1,"týdně",1,null,null,1,0,"Úklidová činnost č. 11",12,null,0.2,0,0,{"$f":"IF(F21=\"denně\",Q21*G21*$B$60,IF(F21=\"týdně\",Q21*G21*$B$61,IF(F21=\"měsíčně\",Q21*G21*$B$62,IF(F21=\"čtvrtletně\",Q21*G21*4*$B$63,IF(F21=\"ročně\",Q21*G21*$B$63,G21*Q21*$B$63)))))*'Základní údaje'!$H$13*IF(K48=1,'Základní údaje'!$C$12,1)","v":0}]
["přilehlé zábradlí",null,1,21,21,"týdně",1,null,null,1,0,"otřít zabradlí a parapet a utřít prach, odstranit pavučiny",8,null,2.8,0,0,{"$f":"IF(F22=\"denně\",Q22*G22*$B$60,IF(F22=\"týdně\",Q22*G22*$B$61,IF(F22=\"měsíčně\",Q22*G22*$B$62,IF(F22=\"čtvrtletně\",Q22*G22*4*$B$63,IF(F22=\"ročně\",Q22*G22*$B$63,G22*Q22*$B$63)))))*'Základní údaje'!$H$13*IF(K49=1,'Základní údaje'!$C$12,1)","v":0}]
["tělocvična",81,null,1,81,"týdně",1,null,null,1,0,"Úklidová činnost č. 3",30,null,0.5,0,0,{"$f":"IF(F23=\"denně\",Q23*G23*$B$60,IF(F23=\"týdně\",Q23*G23*$B$61,IF(F23=\"měsíčně\",Q23*G23*$B$62,IF(F23=\"čtvrtletně\",Q23*G23*4*$B$63,IF(F23=\"ročně\",Q23*G23*$B$63,G23*Q23*$B$63)))))*'Základní údaje'!$H$13*IF(K50=1,'Základní údaje'!$C$12,1)","v":0}]
["místnost úklízeček a úklid.prost.",15,null,1,15,"týdně",1,null,null,1,0,"Úklidová činnost č. 3",15,null,0.25,0,0,{"$f":"IF(F24=\"denně\",Q24*G24*$B$60,IF(F24=\"týdně\",Q24*G24*$B$61,IF(F24=\"měsíčně\",Q24*G24*$B$62,IF(F24=\"čtvrtletně\",Q24*G24*4*$B$63,IF(F24=\"ročně\",Q24*G24*$B$63,G24*Q24*$B$63)))))*'Základní údaje'!$H$13*IF(K51=1,'Základní údaje'!$C$12,1)","v":0}]
["uklízečky soc. zařízení ",5,null,1,5,"týdně",3,null,null,1,0,"Úklidová činnost č. 14 a 15",3,null,0.05,0,0,{"$f":"IF(F25=\"denně\",Q25*G25*$B$60,IF(F25=\"týdně\",Q25*G25*$B$61,IF(F25=\"měsíčně\",Q25*G25*$B$62,IF(F25=\"čtvrtletně\",Q25*G25*4*$B$63,IF(F25=\"ročně\",Q25*G25*$B$63,G25*Q25*$B$63)))))*'Základní údaje'!$H$13*IF(K45=1,'Základní údaje'!$C$12,1)","v":0}]
["balkon",4,null,18,72,"týdně",1,null,null,1,0,"Úklidová činnost č. 2",7,null,2.1,0,0,{"$f":"IF(F26=\"denně\",Q26*G26*$B$60,IF(F26=\"týdně\",Q26*G26*$B$61,IF(F26=\"měsíčně\",Q26*G26*$B$62,IF(F26=\"čtvrtletně\",Q26*G26*4*$B$63,IF(F26=\"ročně\",Q26*G26*$B$63,G26*Q26*$B$63)))))*'Základní údaje'!$H$13*IF(K52=1,'Základní údaje'!$C$12,1)","v":0}]
["dvoulůžkový pokoj- buňka -  HOTEL",15,null,4,60,"týdně",1,null,null,1,1,"Úklidová činnost č. 8",30,null,2,0,0,{"$f":"IF(F27=\"denně\",Q27*G27*$B$60,IF(F27=\"týdně\",Q27*G27*$B$61,IF(F27=\"měsíčně\",Q27*G27*$B$62,IF(F27=\"čtvrtletně\",Q27*G27*4*$B$63,IF(F27=\"ročně\",Q27*G27*$B$63,G27*Q27*$B$63)))))*'Základní údaje'!$H$13*IF(K53=1,'Základní údaje'!$C$12,1)","v":0}]
["jedolůžkový pokoj- buňka -  HOTEL",12,null,1,12,"týdně",1,null,null,1,1,"Úklidová činnost č. 8",25,null,0.41666666666666669,0,0,{"$f":"IF(F28=\"denně\",Q28*G28*$B$60,IF(F28=\"týdně\",Q28*G28*$B$61,IF(F28=\"měsíčně\",Q28*G28*$B$62,IF(F28=\"čtvrtletně\",Q28*G28*4*$B$63,IF(F28=\"ročně\",Q28*G28*$B$63,G28*Q28*$B$63)))))*'Základní údaje'!$H$13*IF(K54=1,'Základní údaje'!$C$12,1)","v":0}]
["třílůžkový pokoj- buňka -  HOTEL",23,null,1,{"$f":"B29*D29+C29*D29","v":23},"týdně",1,null,null,1,1,"Úklidová činnost č. 8",35,null,{"$f":"IF(N29=0,M29*D29/60,N29*D29/60)","v":0.58333333333333337},{"$f":"ROUND(IF(N29=0,M29/60*$B$2,N29/60*$B$2),0)","v":0},{"$f":"P29*D29","v":0},{"$f":"IF(F29=\"denně\",Q29*G29*$B$60,IF(F29=\"týdně\",Q29*G29*$B$61,IF(F29=\"měsíčně\",Q29*G29*$B$62,IF(F29=\"čtvrtletně\",Q29*G29*4*$B$63,IF(F29=\"ročně\",Q29*G29*$B$63,G29*Q29*$B$63)))))*'Základní údaje'!$H$13*IF(K55=1,'Základní údaje'!$C$12,1)","v":0}]
["dvoulůžkový pokoj- buňka -  HOTEL",15,null,4,{"$f":"B30*D30+C30*D30","v":60},"týdně",1,null,null,1,1,"Úklidová činnost č. 9",10,null,{"$f":"IF(N30=0,M30*D30/60,N30*D30/60)","v":0.66666666666666663},{"$f":"ROUND(IF(N30=0,M30/60*$B$2,N30/60*$B$2),0)","v":0},{"$f":"P30*D30","v":0},{"$f":"IF(F30=\"denně\",Q30*G30*$B$60,IF(F30=\"týdně\",Q30*G30*$B$61,IF(F30=\"měsíčně\",Q30*G30*$B$62,IF(F30=\"čtvrtletně\",Q30*G30*4*$B$63,IF(F30=\"ročně\",Q30*G30*$B$63,G30*Q30*$B$63)))))*'Základní údaje'!$H$13*IF(K55=1,'Základní údaje'!$C$12,1)","v":0}]
["jedolůžkový pokoj- buňka -  HOTEL",12,null,1,12,"týdně",1,null,null,1,1,"Úklidová činnost č. 9",8,null,0.13333333333333333,0,0,{"$f":"IF(F31=\"denně\",Q31*G31*$B$60,IF(F31=\"týdně\",Q31*G31*$B$61,IF(F31=\"měsíčně\",Q31*G31*$B$62,IF(F31=\"čtvrtletně\",Q31*G31*4*$B$63,IF(F31=\"ročně\",Q31*G31*$B$63,G31*Q31*$B$63)))))*'Základní údaje'!$H$13*IF(K56=1,'Základní údaje'!$C$12,1)","v":0}]
["třílůžkový pokoj- buňka -  HOTEL",23,null,1,{"$f":"B32*D32+C32*D32","v":23},"týdně",1,null,null,1,1,"Úklidová činnost č. 9",11,null,{"$f":"IF(N32=0,M32*D32/60,N32*D32/60)","v":0.18333333333333332},{"$f":"ROUND(IF(N32=0,M32/60*$B$2,N32/60*$B$2),0)","v":0},{"$f":"P32*D32","v":0},{"$f":"IF(F32=\"denně\",Q32*G32*$B$60,IF(F32=\"týdně\",Q32*G32*$B$61,IF(F32=\"měsíčně\",Q32*G32*$B$62,IF(F32=\"čtvrtletně\",Q32*G32*4*$B$63,IF(F32=\"ročně\",Q32*G32*$B$63,G32*Q32*$B$63)))))*'Základní údaje'!$H$13*IF(K57=1,'Základní údaje'!$C$12,1)","v":0}]
["chodba+kuchyňka- buňka -  HOTEL",6,null,1,6,"týdně",1,null,null,1,1,"Úklidová činnost č. 5",20,null,0.33333333333333331,0,0,{"$f":"IF(F33=\"denně\",Q33*G33*$B$60,IF(F33=\"týdně\",Q33*G33*$B$61,IF(F33=\"měsíčně\",Q33*G33*$B$62,IF(F33=\"čtvrtletně\",Q33*G33*4*$B$63,IF(F33=\"ročně\",Q33*G33*$B$63,G33*Q33*$B$63)))))*'Základní údaje'!$H$13*IF(K55=1,'Základní údaje'!$C$12,1)","v":0}]
["sprcha - buňka -  HOTEL",2,null,4,8,"týdně",1,null,null,1,1,"Úklidová činnost č. 15",7,null,0.46666666666666667,0,0,{"$f":"IF(F34=\"denně\",Q34*G34*$B$60,IF(F34=\"týdně\",Q34*G34*$B$61,IF(F34=\"měsíčně\",Q34*G34*$B$62,IF(F34=\"čtvrtletně\",Q34*G34*4*$B$63,IF(F34=\"ročně\",Q34*G34*$B$63,G34*Q34*$B$63)))))*'Základní údaje'!$H$13*IF(K56=1,'Základní údaje'!$C$12,1)","v":0}]
["WC - buňka -  HOTEL",2,null,4,8,"týdně",1,null,null,1,1,"Úklidová činnost č. 14",10,null,0.66666666666666663,0,0,{"$f":"IF(F35=\"denně\",Q35*G35*$B$60,IF(F35=\"týdně\",Q35*G35*$B$61,IF(F35=\"měsíčně\",Q35*G35*$B$62,IF(F35=\"čtvrtletně\",Q35*G35*4*$B$63,IF(F35=\"ročně\",Q35*G35*$B$63,G35*Q35*$B$63)))))*'Základní údaje'!$H$13*IF(K57=1,'Základní údaje'!$C$12,1)","v":0}]
["jednolůžkový samostatný -  HOTEL",10,null,1,10,"týdně",1,null,null,1,1,"Úklidová činnost č. 8",17,null,0.28333333333333333,0,0,{"$f":"IF(F36=\"denně\",Q36*G36*$B$60,IF(F36=\"týdně\",Q36*G36*$B$61,IF(F36=\"měsíčně\",Q36*G36*$B$62,IF(F36=\"čtvrtletně\",Q36*G36*4*$B$63,IF(F36=\"ročně\",Q36*G36*$B$63,G36*Q36*$B$63)))))*'Základní údaje'!$H$13*IF(K58=1,'Základní údaje'!$C$12,1)","v":0}]
["dvoulůžkový samostatný -  HOTEL",15,null,2,30,"týdně",1,null,null,1,1,"Úklidová činnost č. 8",25,null,0.83333333333333337,0,0,{"$f":"IF(F37=\"denně\",Q37*G37*$B$60,IF(F37=\"týdně\",Q37*G37*$B$61,IF(F37=\"měsíčně\",Q37*G37*$B$62,IF(F37=\"čtvrtletně\",Q37*G37*4*$B$63,IF(F37=\"ročně\",Q37*G37*$B$63,G37*Q37*$B$63)))))*'Základní údaje'!$H$13*IF(K56=1,'Základní údaje'!$C$12,1)","v":0}]
["trojlůžkový samostatný -  HOTEL",26,null,1,0,"týdně",1,null,null,1,1,"Úklidová činnost č. 8",43,null,0.71666666666666667,0,0,{"$f":"IF(F38=\"denně\",Q38*G38*$B$60,IF(F38=\"týdně\",Q38*G38*$B$61,IF(F38=\"měsíčně\",Q38*G38*$B$62,IF(F38=\"čtvrtletně\",Q38*G38*4*$B$63,IF(F38=\"ročně\",Q38*G38*$B$63,G38*Q38*$B$63)))))*'Základní údaje'!$H$13*IF(K57=1,'Základní údaje'!$C$12,1)","v":0}]
["jednolůžkový samostatný -  HOTEL",10,null,1,{"$f":"B39*D39+C39*D39","v":10},"týdně",1,null,null,1,1,"Úklidová činnost č. 9",5,null,{"$f":"IF(N39=0,M39*D39/60,N39*D39/60)","v":8.3333333333333329E-2},{"$f":"ROUND(IF(N39=0,M39/60*$B$2,N39/60*$B$2),0)","v":0},{"$f":"P39*D39","v":0},{"$f":"IF(F39=\"denně\",Q39*G39*$B$60,IF(F39=\"týdně\",Q39*G39*$B$61,IF(F39=\"měsíčně\",Q39*G39*$B$62,IF(F39=\"čtvrtletně\",Q39*G39*4*$B$63,IF(F39=\"ročně\",Q39*G39*$B$63,G39*Q39*$B$63)))))*'Základní údaje'!$H$13*IF(K57=1,'Základní údaje'!$C$12,1)","v":0}]
["dvoulůžkový samostatný -  HOTEL",15,null,2,30,"týdně",1,null,null,1,1,"Úklidová činnost č. 9",10,null,0.33333333333333331,0,0,{"$f":"IF(F40=\"denně\",Q40*G40*$B$60,IF(F40=\"týdně\",Q40*G40*$B$61,IF(F40=\"měsíčně\",Q40*G40*$B$62,IF(F40=\"čtvrtletně\",Q40*G40*4*$B$63,IF(F40=\"ročně\",Q40*G40*$B$63,G40*Q40*$B$63)))))*'Základní údaje'!$H$13*IF(K59=1,'Základní údaje'!$C$12,1)","v":0}]
["trojlůžkový samostatný -  HOTEL",26,null,1,0,"týdně",1,null,null,1,1,"Úklidová činnost č. 9",11,null,0.18333333333333332,0,0,{"$f":"IF(F41=\"denně\",Q41*G41*$B$60,IF(F41=\"týdně\",Q41*G41*$B$61,IF(F41=\"měsíčně\",Q41*G41*$B$62,IF(F41=\"čtvrtletně\",Q41*G41*4*$B$63,IF(F41=\"ročně\",Q41*G41*$B$63,G41*Q41*$B$63)))))*'Základní údaje'!$H$13*IF(K60=1,'Základní údaje'!$C$12,1)","v":0}]
["kanceláře+zázemí",41,null,1,{"$f":"B42*D42+C42*D42","v":41},"měsíčně",1,null,null,1,0,"Úklidová činnost č. 3",10,null,0.16666666666666666,0,0,{"$f":"IF(F42=\"denně\",Q42*G42*$B$60,IF(F42=\"týdně\",Q42*G42*$B$61,IF(F42=\"měsíčně\",Q42*G42*$B$62,IF(F42=\"čtvrtletně\",Q42*G42*4*$B$63,IF(F42=\"ročně\",Q42*G42*$B$63,G42*Q42*$B$63)))))*'Základní údaje'!$H$13*IF(K58=1,'Základní údaje'!$C$12,1)","v":0}]
["sklad lůžkovin",23,null,1,23,"měsíčně",1,null,null,1,0,"Úklidová činnost č. 3",6,null,{"$f":"IF(N43=0,M43*D43/60,N43*D43/60)","v":0.1},{"$f":"ROUND(IF(N43=0,M43/60*$B$2,N43/60*$B$2),0)","v":0},{"$f":"P43*D43","v":0},{"$f":"IF(F43=\"denně\",Q43*G43*$B$60,IF(F43=\"týdně\",Q43*G43*$B$61,IF(F43=\"měsíčně\",Q43*G43*$B$62,IF(F43=\"čtvrtletně\",Q43*G43*4*$B$63,IF(F43=\"ročně\",Q43*G43*$B$63,G43*Q43*$B$63)))))*'Základní údaje'!$H$13*IF(K59=1,'Základní údaje'!$C$12,1)","v":0}]
["sklad- čistící prostředky",30,null,1,30,"měsíčně",1,null,null,1,0,"Úklidová činnost č. 3",8,null,0.13333333333333333,0,0,{"$f":"IF(F44=\"denně\",Q44*G44*$B$60,IF(F44=\"týdně\",Q44*G44*$B$61,IF(F44=\"měsíčně\",Q44*G44*$B$62,IF(F44=\"čtvrtletně\",Q44*G44*4*$B$63,IF(F44=\"ročně\",Q44*G44*$B$63,G44*Q44*$B$63)))))*'Základní údaje'!$H$13*IF(K60=1,'Základní údaje'!$C$12,1)","v":0}]
["Okna (různé velikosti)",null,1,{"$f":"108+115+40+8+13+39","v":323},{"$f":"B45*D45+C45*D45","v":323},"ročně",1,null,null,1,0,"Úklidová činnost č. 12",20,null,{"$f":"IF(N45=0,M45*D45/60,N45*D45/60)","v":107.66666666666667},{"$f":"ROUND(IF(N45=0,M45/60*$B$2,N45/60*$B$2),0)","v":0},{"$f":"P45*D45","v":0},{"$f":"IF(F45=\"denně\",Q45*G45*$B$60,IF(F45=\"týdně\",Q45*G45*$B$61,IF(F45=\"měsíčně\",Q45*G45*$B$62,IF(F45=\"čtvrtletně\",Q45*G45*4*$B$63,IF(F45=\"ročně\",Q45*G45*$B$63,G45*Q45*$B$63)))))*'Základní údaje'!$H$13*IF(K67=1,'Základní údaje'!$C$12,1)","v":0}]
["jednolůžkový pokoj (buňka)",12,null,5,60,"sezonně",2,26,37,1,0,"Úklidová činnost č. 6",20,null,1.6666666666666667,0,0,{"$f":"IF(F46=\"denně\",Q46*G46*$B$60,IF(F46=\"týdně\",Q46*G46*$B$61,IF(F46=\"měsíčně\",Q46*G46*$B$62,IF(F46=\"čtvrtletně\",Q46*G46*4*$B$63,IF(F46=\"ročně\",Q46*G46*$B$63,G46*Q46*$B$63)))))*'Základní údaje'!$H$13*IF(K61=1,'Základní údaje'!$C$12,1)","v":0}]
["dvoulůžkový pokoj (buňka)",15,null,38,570,"sezonně",2,26,37,1,0,"Úklidová činnost č. 6",25,null,15.833333333333334,0,0,{"$f":"IF(F47=\"denně\",Q47*G47*$B$60,IF(F47=\"týdně\",Q47*G47*$B$61,IF(F47=\"měsíčně\",Q47*G47*$B$62,IF(F47=\"čtvrtletně\",Q47*G47*4*$B$63,IF(F47=\"ročně\",Q47*G47*$B$63,G47*Q47*$B$63)))))*'Základní údaje'!$H$13*IF(K62=1,'Základní údaje'!$C$12,1)","v":0}]
["třílůžkový pokoj (buňka)",23,null,37,851,"sezonně",2,26,37,1,0,"Úklidová činnost č. 6",38,null,{"$f":"IF(N48=0,M48*D48/60,N48*D48/60)","v":23.433333333333334},{"$f":"ROUND(IF(N48=0,M48/60*$B$2,N48/60*$B$2),0)","v":0},0,{"$f":"IF(F48=\"denně\",Q48*G48*$B$60,IF(F48=\"týdně\",Q48*G48*$B$61,IF(F48=\"měsíčně\",Q48*G48*$B$62,IF(F48=\"čtvrtletně\",Q48*G48*4*$B$63,IF(F48=\"ročně\",Q48*G48*$B$63,G48*Q48*$B$63)))))*'Základní údaje'!$H$13*IF(K63=1,'Základní údaje'!$C$12,1)","v":0}]
["chodba + kuchyňka - buňka",6,null,38,228,"sezonně",2,26,37,1,0,"Úklidová činnost č. 5",30,null,19,0,0,{"$f":"IF(F49=\"denně\",Q49*G49*$B$60,IF(F49=\"týdně\",Q49*G49*$B$61,IF(F49=\"měsíčně\",Q49*G49*$B$62,IF(F49=\"čtvrtletně\",Q49*G49*4*$B$63,IF(F49=\"ročně\",Q49*G49*$B$63,G49*Q49*$B$63)))))*'Základní údaje'!$H$13*IF(K64=1,'Základní údaje'!$C$12,1)","v":0}]
["sprcha - buňka",2,null,38,76,"sezonně",2,26,37,1,0,"Úklidová činnost č. 15",7,null,4.4333333333333336,0,0,{"$f":"IF(F50=\"denně\",Q50*G50*$B$60,IF(F50=\"týdně\",Q50*G50*$B$61,IF(F50=\"měsíčně\",Q50*G50*$B$62,IF(F50=\"čtvrtletně\",Q50*G50*4*$B$63,IF(F50=\"ročně\",Q50*G50*$B$63,G50*Q50*$B$63)))))*'Základní údaje'!$H$13*IF(K65=1,'Základní údaje'!$C$12,1)","v":0}]
["WC - buňka",null,1,38,38,"sezonně",2,26,37,1,0,"Úklidová činnost č. 14",8,null,5.0666666666666664,0,0,{"$f":"IF(F51=\"denně\",Q51*G51*$B$60,IF(F51=\"týdně\",Q51*G51*$B$61,IF(F51=\"měsíčně\",Q51*G51*$B$62,IF(F51=\"čtvrtletně\",Q51*G51*4*$B$63,IF(F51=\"ročně\",Q51*G51*$B$63,G51*Q51*$B$63)))))*'Základní údaje'!$H$13*IF(K66=1,'Základní údaje'!$C$12,1)","v":0}]
["jednolůžkový samostatný",10,null,12,120,"sezonně",2,26,37,1,0,"Úklidová činnopst č. 6",33,null,6.6,0,0,{"$f":"IF(F52=\"denně\",Q52*G52*$B$60,IF(F52=\"týdně\",Q52*G52*$B$61,IF(F52=\"měsíčně\",Q52*G52*$B$62,IF(F52=\"čtvrtletně\",Q52*G52*4*$B$63,IF(F52=\"ročně\",Q52*G52*$B$63,G52*Q52*$B$63)))))*'Základní údaje'!$H$13*IF(K68=1,'Základní údaje'!$C$12,1)","v":0}]
["dvoulůžkový samostatný",15,null,53,795,"sezonně",2,26,37,1,0,"Úklidová činnopst č. 6",50,null,44.166666666666664,0,0,{"$f":"IF(F53=\"denně\",Q53*G53*$B$60,IF(F53=\"týdně\",Q53*G53*$B$61,IF(F53=\"měsíčně\",Q53*G53*$B$62,IF(F53=\"čtvrtletně\",Q53*G53*4*$B$63,IF(F53=\"ročně\",Q53*G53*$B$63,G53*Q53*$B$63)))))*'Základní údaje'!$H$13*IF(K69=1,'Základní údaje'!$C$12,1)","v":0}]
["trojlůžkový samostatný",26,null,6,156,"sezonně",2,26,37,1,0,"Úklidová činnopst č. 6",87,null,8.6999999999999993,0,0,{"$f":"IF(F54=\"denně\",Q54*G54*$B$60,IF(F54=\"týdně\",Q54*G54*$B$61,IF(F54=\"měsíčně\",Q54*G54*$B$62,IF(F54=\"čtvrtletně\",Q54*G54*4*$B$63,IF(F54=\"ročně\",Q54*G54*$B$63,G54*Q54*$B$63)))))*'Základní údaje'!$H$13*IF(K70=1,'Základní údaje'!$C$12,1)","v":0}]
["přebrání pokoje po ubytovaných",null,1,173,173,"sezonně",2,26,37,1,0,"Úklidová činnost č. 10",6,null,17.3,0,0,{"$f":"IF(F55=\"denně\",Q55*G55*$B$60,IF(F55=\"týdně\",Q55*G55*$B$61,IF(F55=\"měsíčně\",Q55*G55*$B$62,IF(F55=\"čtvrtletně\",Q55*G55*4*$B$63,IF(F55=\"ročně\",Q55*G55*$B$63,G55*Q55*$B$63)))))*'Základní údaje'!$H$13*IF(K71=1,'Základní údaje'!$C$12,1)","v":0}]
["terasa",77,null,1,77,"sezonně",{"$f":"(I56-H56+1)*2","v":60},12,41,1,null,"zamést podlahu, vynést odpadky, umýt dveře včetně zárubní, otřít a urovnat nábytek",40,null,0.66666666666666663,0,0,{"$f":"IF(F56=\"denně\",Q56*G56*$B$60,IF(F56=\"týdně\",Q56*G56*$B$61,IF(F56=\"měsíčně\",Q56*G56*$B$62,IF(F56=\"čtvrtletně\",Q56*G56*4*$B$63,IF(F56=\"ročně\",Q56*G56*$B$63,G56*Q56*$B$63)))))*'Základní údaje'!$H$13*IF(K75=1,'Základní údaje'!$C$12,1)","v":0}]
[]
["Plocha celkem",{"$f":"SUMPRODUCT(B4:B56,D4:D56)","v":5449},"[m²]"]
["Počet kusů celkem",{"$f":"SUMPRODUCT(C4:C56,D4:D56)","v":561},"[-]"]
["Počet pracovních dnů úklidu:",{"$f":"NETWORKDAYS($C$1,$D$1,$A$70:$A$136)","v":1014},null,null,null,null,null,null,null,null,null,{"$f":"NETWORKDAYS(J60,K60,J61)","v":0}]
["Počet týdnů úklidu:",{"$f":"B63*52","v":208}]
["Počet měsíců úklidu:",{"$f":"B63*12","v":48}]
["Počet let úklidu",{"$f":"YEAR(D1)-YEAR(C1)","v":4}]
["CENA CELKEM:",{"$f":"ROUND(SUM(R4:R56),0)","v":0},null,null,"[Kč]"]
[]
[]
[]
[]
["svátky:","četnost úklidu","označení","období úklidu",null,null,"Kritéria"]
["2019-01-01","denně",0,"1. Q",null,null,{"$f":"$F$3","v":"uklízí se"}]
["2019-04-19","týdně",1,"2. Q",null,null,{"$f":"B70","v":"denně"}]
["2019-04-22","měsíčně",null,"3. Q"]
["2019-05-01","čtvrtletně",null,"4. Q",null,null,{"$f":"$F$3","v":"uklízí se"}]
["2019-05-08","ročně",null,"leden",null,null,{"$f":"B71","v":"týdně"}]
["2019-07-05","sezonně",null,"únor"]
["2019-10-28",null,null,"březen",null,null,{"$f":"$F$3","v":"uklízí se"}]
["2019-12-24",null,null,"duben",null,null,{"$f":"B72","v":"měsíčně"}]
["2019-12-25",null,null,"květen"]
["2019-12-26",null,null,"červen",null,null,{"$f":"$F$3","v":"uklízí se"}]
["2020-01-01",null,null,"červenec",null,null,{"$f":"B73","v":"čtvrtletně"}]
["2020-04-10",null,null,"srpen"]
["2020-04-13",null,null,"září",null,null,{"$f":"$F$3","v":"uklízí se"}]
["2020-05-01",null,null,"říjen",null,null,{"$f":"B74","v":"ročně"}]
["2020-05-08",null,null,"listopat"]
["2020-07-06",null,null,"prosinec"]
["2020-09-28"]
["2020-10-28"]
["2020-11-17"]
["2020-12-24"]
["2020-12-25"]
["2021-01-01"]
["2021-04-02"]
["2021-04-05"]
["2021-07-05"]
["2021-07-06"]
["2021-09-28"]
["2021-10-28"]
["2021-11-17"]
["2021-12-24"]
["2022-04-15"]
["2022-04-18"]
["2022-07-05"]
["2022-07-06"]
["2022-09-28"]
["2022-10-28"]
["2022-11-17"]
["2022-12-26"]
["2023-04-07"]
["2023-04-10"]
["2023-05-01"]
["2023-05-08"]
["2023-07-05"]
["2023-07-06"]
["2023-09-28"]
["2023-11-17"]
["2023-12-25"]
["2023-12-26"]
["2024-01-01"]
["2024-03-29"]
["2024-04-01"]
["2024-05-01"]
["2024-05-08"]
["2024-07-05"]
["2024-10-28"]
["2024-12-24"]
["2024-12-26"]
["2024-12-26"]
["2025-01-01"]
["2025-04-18"]
["2025-04-21"]
["2025-10-28"]
["2025-11-17"]
["2025-12-24"]
["2025-12-25"]
["2025-12-26"]

{"sheet":"Karty úklidu","index":2,"n_rows":99,"n_cols":8,"rows_kept":99,"cut":false,"hidden":false,"merged":[]}
["V komentáři jsou zkatky pro tisk"]
["Karta úklidu",null,null,{"$f":"'Rozpis úklidu'!$A$1","v":"kolej: Rooseveltova, VŠE"}]
["DENNÍ ÚKLID                       DNE:",{"$f":"NOW()","v":"2022-03-30T08:13:07.050"}]
[{"$f":"'Rozpis úklidu'!$A$3","v":"Úklidová jednotka"},{"$f":"'Rozpis úklidu'!$D$3","v":"počet\núklidových jednotek"},"Doba úklidu\n[hod.]",{"$f":"'Rozpis úklidu'!$L$3","v":"Popis činnosti"},{"$f":"'Rozpis úklidu'!$Q$3","v":"cena celkem za všechny úklidové jednotky \n(prac. dny)\n[Kč]"},"Správně\nuklizené\njednotky","Smluvní pokuta\n[Kč]","Poznámka"]
[{"$f":"'Rozpis úklidu'!A4","v":"výtah velký"},{"$f":"'Rozpis úklidu'!D4*'Rozpis úklidu'!G4","v":1},{"$f":"IF('Rozpis úklidu'!N4=0,'Rozpis úklidu'!M4*B5/60,'Rozpis úklidu'!N4*B5/60)","v":0.16666666666666666},{"$f":"'Rozpis úklidu'!L4","v":"Úklidová činnost č. 11"},{"$f":"'Rozpis úklidu'!P4*F5","v":0},{"$f":"B5","v":1},{"$f":"IF(F5<B5,(B5-F5)*('Rozpis úklidu'!P4)*2,0)","v":0}]
[{"$f":"'Rozpis úklidu'!A5","v":"výtah malý"},{"$f":"'Rozpis úklidu'!D5*'Rozpis úklidu'!G5","v":1},{"$f":"IF('Rozpis úklidu'!N5=0,'Rozpis úklidu'!M5*B6/60,'Rozpis úklidu'!N5*B6/60)","v":0.13333333333333333},{"$f":"'Rozpis úklidu'!L5","v":"Úklidová činnost č. 11"},{"$f":"'Rozpis úklidu'!P5*F6","v":0},{"$f":"B6","v":1},{"$f":"IF(F6<B6,(B6-F6)*('Rozpis úklidu'!P5)*2,0)","v":0}]
[{"$f":"'Rozpis úklidu'!A6","v":"patro chodba 2.-6.NP"},{"$f":"'Rozpis úklidu'!D6*'Rozpis úklidu'!G6","v":5},{"$f":"IF('Rozpis úklidu'!N6=0,'Rozpis úklidu'!M6*B7/60,'Rozpis úklidu'!N6*B7/60)","v":1.5},{"$f":"'Rozpis úklidu'!L6","v":"Úklidová činnost č, 1"},{"$f":"'Rozpis úklidu'!P6*F7","v":0},5,{"$f":"IF(F7<B7,(B7-F7)*('Rozpis úklidu'!P6)*2,0)","v":0}]
[{"$f":"'Rozpis úklidu'!A7","v":"patro chodba 7. NP"},{"$f":"'Rozpis úklidu'!D7*'Rozpis úklidu'!G7","v":1},{"$f":"IF('Rozpis úklidu'!N7=0,'Rozpis úklidu'!M7*B8/60,'Rozpis úklidu'!N7*B8/60)","v":0.26666666666666666},{"$f":"'Rozpis úklidu'!L7","v":"Úklidová činnost č, 1"},{"$f":"'Rozpis úklidu'!P7*F8","v":0},1,{"$f":"IF(F8<B8,(B8-F8)*('Rozpis úklidu'!P7)*2,0)","v":0}]
[{"$f":"'Rozpis úklidu'!A8","v":"patro chodba 1. NP"},{"$f":"'Rozpis úklidu'!D8*'Rozpis úklidu'!G8","v":1},{"$f":"IF('Rozpis úklidu'!N8=0,'Rozpis úklidu'!M8*B9/60,'Rozpis úklidu'!N8*B9/60)","v":0.43333333333333335},{"$f":"'Rozpis úklidu'!L8","v":"Úklidová činnost č, 1"},{"$f":"'Rozpis úklidu'!P8*F9","v":0},1,{"$f":"IF(F9<B9,(B9-F9)*('Rozpis úklidu'!P8)*2,0)","v":0}]
[{"$f":"'Rozpis úklidu'!A9","v":"schodiště"},{"$f":"'Rozpis úklidu'!D9*'Rozpis úklidu'!G9","v":7},{"$f":"IF('Rozpis úklidu'!N9=0,'Rozpis úklidu'!M9*B10/60,'Rozpis úklidu'!N9*B10/60)","v":1.1666666666666667},{"$f":"'Rozpis úklidu'!L9","v":"Úklidová činnost č, 1"},{"$f":"'Rozpis úklidu'!P9*F10","v":0},7,{"$f":"IF(F10<B10,(B10-F10)*('Rozpis úklidu'!P9)*2,0)","v":0}]
[{"$f":"'Rozpis úklidu'!A10","v":"tv místnost"},{"$f":"'Rozpis úklidu'!D10*'Rozpis úklidu'!G10","v":1},{"$f":"IF('Rozpis úklidu'!N10=0,'Rozpis úklidu'!M10*B11/60,'Rozpis úklidu'!N10*B11/60)","v":0.2},{"$f":"'Rozpis úklidu'!L10","v":"Úklidová činnost č. 3"},{"$f":"'Rozpis úklidu'!P10*F11","v":0},1,{"$f":"IF(F11<B11,(B11-F11)*('Rozpis úklidu'!P10)*2,0)","v":0}]
[{"$f":"'Rozpis úklidu'!A11","v":"posilovna"},{"$f":"'Rozpis úklidu'!D11*'Rozpis úklidu'!G11","v":1},{"$f":"IF('Rozpis úklidu'!N11=0,'Rozpis úklidu'!M11*B12/60,'Rozpis úklidu'!N11*B12/60)","v":0.33333333333333331},{"$f":"'Rozpis úklidu'!L11","v":"Úklidová činnost č. 3"},{"$f":"'Rozpis úklidu'!P11*F12","v":0},1,{"$f":"IF(F12<B12,(B12-F12)*('Rozpis úklidu'!P11)*2,0)","v":0}]
[{"$f":"'Rozpis úklidu'!A12","v":"studovna"},{"$f":"'Rozpis úklidu'!D12*'Rozpis úklidu'!G12","v":1},{"$f":"IF('Rozpis úklidu'!N12=0,'Rozpis úklidu'!M12*B13/60,'Rozpis úklidu'!N12*B13/60)","v":0.16666666666666666},{"$f":"'Rozpis úklidu'!L12","v":"Úklidová činnost č. 3"},{"$f":"'Rozpis úklidu'!P12*F13","v":0},1,{"$f":"IF(F13<B13,(B13-F13)*('Rozpis úklidu'!P12)*2,0)","v":0}]
[{"$f":"'Rozpis úklidu'!A13","v":"sušárna + prádelna"},{"$f":"'Rozpis úklidu'!D13*'Rozpis úklidu'!G13","v":1},{"$f":"IF('Rozpis úklidu'!N13=0,'Rozpis úklidu'!M13*B14/60,'Rozpis úklidu'!N13*B14/60)","v":0.25},{"$f":"'Rozpis úklidu'!L13","v":"Úklidová činnost č. 4"},{"$f":"'Rozpis úklidu'!P13*F14","v":0},1,{"$f":"IF(F14<B14,(B14-F14)*('Rozpis úklidu'!P13)*2,0)","v":0}]
[{"$f":"'Rozpis úklidu'!A14","v":"WC suterén"},{"$f":"'Rozpis úklidu'!D14*'Rozpis úklidu'!G14","v":2},{"$f":"IF('Rozpis úklidu'!N14=0,'Rozpis úklidu'!M14*B15/60,'Rozpis úklidu'!N14*B15/60)","v":0.26666666666666666},{"$f":"'Rozpis úklidu'!L14","v":"Úklidová činnost č. 14"},{"$f":"'Rozpis úklidu'!P14*F15","v":0},2,{"$f":"IF(F15<B15,(B15-F15)*('Rozpis úklidu'!P14)*2,0)","v":0}]
[{"$f":"'Rozpis úklidu'!A15","v":"HYGIENICKÉ ZÁZEMÍ 1. NP"},{"$f":"'Rozpis úklidu'!D15*'Rozpis úklidu'!G15","v":1},{"$f":"IF('Rozpis úklidu'!N15=0,'Rozpis úklidu'!M15*B16/60,'Rozpis úklidu'!N15*B16/60)","v":0.16666666666666666},{"$f":"'Rozpis úklidu'!L15","v":"Úklidová činnost č. 14 a 15"},{"$f":"'Rozpis úklidu'!P15*F16","v":0},1,{"$f":"IF(F16<B16,(B16-F16)*('Rozpis úklidu'!P15)*2,0)","v":0}]
[{"$f":"'Rozpis úklidu'!A16","v":"WC + sprcha 1.-7. NP"},{"$f":"'Rozpis úklidu'!D16*'Rozpis úklidu'!G16","v":14},{"$f":"IF('Rozpis úklidu'!N16=0,'Rozpis úklidu'!M16*B17/60,'Rozpis úklidu'!N16*B17/60)","v":5.833333333333333},{"$f":"'Rozpis úklidu'!L16","v":"Úklidová činnost č. 14"},{"$f":"'Rozpis úklidu'!P16*F17","v":0},14,{"$f":"IF(F17<B17,(B17-F17)*('Rozpis úklidu'!P16)*2,0)","v":0}]
[{"$f":"'Rozpis úklidu'!A17","v":"kuchyňky 1.-7. NP"},{"$f":"'Rozpis úklidu'!D17*'Rozpis úklidu'!G17","v":13},{"$f":"IF('Rozpis úklidu'!N17=0,'Rozpis úklidu'!M17*B18/60,'Rozpis úklidu'!N17*B18/60)","v":4.333333333333333},{"$f":"'Rozpis úklidu'!L17","v":"Úklidová činnost č. 5"},{"$f":"'Rozpis úklidu'!P17*F18","v":0},13,{"$f":"IF(F18<B18,(B18-F18)*('Rozpis úklidu'!P17)*2,0)","v":0}]
["Úklidová pohotovost + Operativní úklidové práce dle požadavku vedoucí koleje",{"$f":"'Základní údaje'!B11","v":0},{"$f":"F19/60","v":0},null,{"$f":"B19/60*F19","v":0},null,0]
["Přepočtený počet uklízeček na den:",{"$f":"(C20+C52+C61)/7","v":2.3885714285714283},{"$f":"SUM(C5:C19)","v":15.216666666666665},"K FAKTURACI CELKEM:",{"$f":"SUM(E5:E19)","v":0},null,{"$f":"SUM(G5:G19)","v":0}]
["Podpis vedoucí směny:",null,null,"Podpis zástupce vedení koleje:"]
[]
["Karta úklidu",null,null,{"$f":"'Rozpis úklidu'!$A$1","v":"kolej: Rooseveltova, VŠE"}]
["TÝDENNÍ ÚKLID                 TÝDEN:",{"$f":"WEEKNUM(TODAY(),1)","v":14},null,{"$f":"(NOW())","v":"2022-03-30T08:13:07.050"}]
[{"$f":"'Rozpis úklidu'!$A$3","v":"Úklidová jednotka"},"počet úklidů týdně","Doba úklidu\n[hod.]",{"$f":"'Rozpis úklidu'!$L$3","v":"Popis činnosti"},{"$f":"'Rozpis úklidu'!$Q$3","v":"cena celkem za všechny úklidové jednotky \n(prac. dny)\n[Kč]"},"Správně\nuklizené\njednotky","Smluvní pokuta\n[Kč]","Poznámka"]
[{"$f":"'Rozpis úklidu'!A18","v":"obyvák"},{"$f":"'Rozpis úklidu'!D18*'Rozpis úklidu'!G18","v":1},{"$f":"IF('Rozpis úklidu'!N18=0,'Rozpis úklidu'!M18*B26/60,'Rozpis úklidu'!N18*B26/60)","v":0.66666666666666663},{"$f":"'Rozpis úklidu'!L18","v":"Úklidová činnost č. 3"},{"$f":"'Rozpis úklidu'!P18*F26","v":0},{"$f":"B26","v":1},{"$f":"IF(F26<B26,(B26-F26)*('Rozpis úklidu'!P18)*2,0)","v":0}]
[{"$f":"'Rozpis úklidu'!A19","v":"herní místnost"},{"$f":"'Rozpis úklidu'!D19*'Rozpis úklidu'!G19","v":1},{"$f":"IF('Rozpis úklidu'!N19=0,'Rozpis úklidu'!M19*B27/60,'Rozpis úklidu'!N19*B27/60)","v":0.5},{"$f":"'Rozpis úklidu'!L19","v":"Úklidová činnost č. 3"},{"$f":"'Rozpis úklidu'!P19*F27","v":0},{"$f":"B27","v":1},{"$f":"IF(F27<B27,(B27-F27)*('Rozpis úklidu'!P19)*2,0)","v":0}]
[{"$f":"'Rozpis úklidu'!A20","v":"výtah velký - týdení úklid"},{"$f":"'Rozpis úklidu'!D20*'Rozpis úklidu'!G20","v":1},{"$f":"IF('Rozpis úklidu'!N20=0,'Rozpis úklidu'!M20*B28/60,'Rozpis úklidu'!N20*B28/60)","v":0.25},{"$f":"'Rozpis úklidu'!L20","v":"Úklidová činnost č. 11"},{"$f":"'Rozpis úklidu'!P20*F28","v":0},1,{"$f":"IF(F28<B28,(B28-F28)*('Rozpis úklidu'!P20)*2,0)","v":0}]
[{"$f":"'Rozpis úklidu'!A21","v":"výtah malý - týdenní úklid"},{"$f":"'Rozpis úklidu'!D21*'Rozpis úklidu'!G21","v":1},{"$f":"IF('Rozpis úklidu'!N21=0,'Rozpis úklidu'!M21*B29/60,'Rozpis úklidu'!N21*B29/60)","v":0.2},{"$f":"'Rozpis úklidu'!L21","v":"Úklidová činnost č. 11"},{"$f":"'Rozpis úklidu'!P21*F29","v":0},1,{"$f":"IF(F29<B29,(B29-F29)*('Rozpis úklidu'!P21)*2,0)","v":0}]
[{"$f":"'Rozpis úklidu'!A22","v":"přilehlé zábradlí"},{"$f":"'Rozpis úklidu'!D22*'Rozpis úklidu'!G22","v":21},{"$f":"IF('Rozpis úklidu'!N22=0,'Rozpis úklidu'!M22*B30/60,'Rozpis úklidu'!N22*B30/60)","v":2.8},{"$f":"'Rozpis úklidu'!L22","v":"otřít zabradlí a parapet a utřít prach, odstranit pavučiny"},{"$f":"'Rozpis úklidu'!P22*F30","v":0},21,{"$f":"IF(F30<B30,(B30-F30)*('Rozpis úklidu'!P22)*2,0)","v":0}]
[{"$f":"'Rozpis úklidu'!A23","v":"tělocvična"},{"$f":"'Rozpis úklidu'!D23*'Rozpis úklidu'!G23","v":1},{"$f":"IF('Rozpis úklidu'!N23=0,'Rozpis úklidu'!M23*B31/60,'Rozpis úklidu'!N23*B31/60)","v":0.5},{"$f":"'Rozpis úklidu'!L23","v":"Úklidová činnost č. 3"},{"$f":"'Rozpis úklidu'!P23*F31","v":0},1,{"$f":"IF(F31<B31,(B31-F31)*('Rozpis úklidu'!P23)*2,0)","v":0}]
[{"$f":"'Rozpis úklidu'!A24","v":"místnost úklízeček a úklid.prost."},{"$f":"'Rozpis úklidu'!D24*'Rozpis úklidu'!G24","v":1},{"$f":"IF('Rozpis úklidu'!N24=0,'Rozpis úklidu'!M24*B32/60,'Rozpis úklidu'!N24*B32/60)","v":0.25},{"$f":"'Rozpis úklidu'!L24","v":"Úklidová činnost č. 3"},{"$f":"'Rozpis úklidu'!P24*F32","v":0},1,{"$f":"IF(F32<B32,(B32-F32)*('Rozpis úklidu'!P24)*2,0)","v":0}]
[{"$f":"'Rozpis úklidu'!A25","v":"uklízečky soc. zařízení "},{"$f":"'Rozpis úklidu'!D25*'Rozpis úklidu'!G25","v":3},{"$f":"IF('Rozpis úklidu'!N25=0,'Rozpis úklidu'!M25*B33/60,'Rozpis úklidu'!N25*B33/60)","v":0.15},{"$f":"'Rozpis úklidu'!L25","v":"Úklidová činnost č. 14 a 15"},{"$f":"'Rozpis úklidu'!P25*F33","v":0},3,{"$f":"IF(F33<B33,(B33-F33)*('Rozpis úklidu'!P25)*2,0)","v":0}]
[{"$f":"'Rozpis úklidu'!A26","v":"balkon"},{"$f":"'Rozpis úklidu'!D26*'Rozpis úklidu'!G26","v":18},{"$f":"IF('Rozpis úklidu'!N26=0,'Rozpis úklidu'!M26*B34/60,'Rozpis úklidu'!N26*B34/60)","v":2.1},{"$f":"'Rozpis úklidu'!L26","v":"Úklidová činnost č. 2"},{"$f":"'Rozpis úklidu'!P26*F34","v":0},18,{"$f":"IF(F34<B34,(B34-F34)*('Rozpis úklidu'!P26)*2,0)","v":0}]
[{"$f":"CONCATENATE('Rozpis úklidu'!A56,\" / (\",'Rozpis úklidu'!F56,\")\")","v":"terasa / (sezonně)"},0,{"$f":"IF('Rozpis úklidu'!N56=0,'Rozpis úklidu'!M56*B35/60,'Rozpis úklidu'!N56*B35/60)","v":0},{"$f":"'Rozpis úklidu'!L56","v":"zamést podlahu, vynést odpadky, umýt dveře včetně zárubní, otřít a urovnat nábytek"},{"$f":"'Rozpis úklidu'!P56*F35","v":0},{"$f":"B35","v":0},{"$f":"IF(F35<B35,(B35-F35)*('Rozpis úklidu'!P56)*2,0)","v":0}]
[{"$f":"CONCATENATE('Rozpis úklidu'!A45,\" / (\",'Rozpis úklidu'!F45,\")\",\" (\",'Rozpis úklidu'!D45,\")\")","v":"Okna (různé velikosti) / (ročně) (323)"},0,{"$f":"IF('Rozpis úklidu'!N45=0,'Rozpis úklidu'!M45*B36/60,'Rozpis úklidu'!N45*B36/60)","v":0},{"$f":"'Rozpis úklidu'!L45","v":"Úklidová činnost č. 12"},{"$f":"'Rozpis úklidu'!P45*F36","v":0},{"$f":"B36","v":0},{"$f":"IF(F36<B36,(B36-F36)*('Rozpis úklidu'!P45)*2,0)","v":0}]
[{"$f":"CONCATENATE('Rozpis úklidu'!A27,\" (\",'Rozpis úklidu'!D27*'Rozpis úklidu'!G27,\")\")","v":"dvoulůžkový pokoj- buňka -  HOTEL (4)"},0,{"$f":"IF('Rozpis úklidu'!N27=0,'Rozpis úklidu'!M27*B37/60,'Rozpis úklidu'!N27*B37/60)","v":0},{"$f":"CONCATENATE('Rozpis úklidu'!L27,\" (po odjezdu)\")","v":"Úklidová činnost č. 8 (po odjezdu)"},{"$f":"'Rozpis úklidu'!P27*F37","v":0},0,{"$f":"IF(F37<B37,(B37-F37)*('Rozpis úklidu'!P27)*2,0)","v":0}]
[{"$f":"CONCATENATE('Rozpis úklidu'!A28,\" (\",'Rozpis úklidu'!D28*'Rozpis úklidu'!G28,\")\")","v":"jedolůžkový pokoj- buňka -  HOTEL (1)"},0,{"$f":"IF('Rozpis úklidu'!N28=0,'Rozpis úklidu'!M28*B38/60,'Rozpis úklidu'!N28*B38/60)","v":0},{"$f":"CONCATENATE('Rozpis úklidu'!L28,\" (po odjezdu)\")","v":"Úklidová činnost č. 8 (po odjezdu)"},{"$f":"'Rozpis úklidu'!P28*F38","v":0},0,{"$f":"IF(F38<B38,(B38-F38)*('Rozpis úklidu'!P28)*2,0)","v":0}]
[{"$f":"CONCATENATE('Rozpis úklidu'!A29,\" (\",'Rozpis úklidu'!D29*'Rozpis úklidu'!G29,\")\")","v":"třílůžkový pokoj- buňka -  HOTEL (1)"},0,{"$f":"IF('Rozpis úklidu'!N29=0,'Rozpis úklidu'!M29*B39/60,'Rozpis úklidu'!N29*B39/60)","v":0},{"$f":"CONCATENATE('Rozpis úklidu'!L29,\" (po odjezdu)\")","v":"Úklidová činnost č. 8 (po odjezdu)"},{"$f":"'Rozpis úklidu'!P29*F39","v":0},{"$f":"B39","v":0},{"$f":"IF(F39<B39,(B39-F39)*('Rozpis úklidu'!P29)*2,0)","v":0}]
[{"$f":"CONCATENATE('Rozpis úklidu'!A30,\" (\",'Rozpis úklidu'!D30*'Rozpis úklidu'!G30,\")\")","v":"dvoulůžkový pokoj- buňka -  HOTEL (4)"},0,{"$f":"IF('Rozpis úklidu'!N30=0,'Rozpis úklidu'!M30*B40/60,'Rozpis úklidu'!N30*B40/60)","v":0},{"$f":"CONCATENATE('Rozpis úklidu'!L30,\" (v průběhu pobytu)\")","v":"Úklidová činnost č. 9 (v průběhu pobytu)"},{"$f":"'Rozpis úklidu'!P30*F40","v":0},0,{"$f":"IF(F40<B40,(B40-F40)*('Rozpis úklidu'!P30)*2,0)","v":0}]
[{"$f":"CONCATENATE('Rozpis úklidu'!A31,\" (\",'Rozpis úklidu'!D31*'Rozpis úklidu'!G31,\")\")","v":"jedolůžkový pokoj- buňka -  HOTEL (1)"},0,{"$f":"IF('Rozpis úklidu'!N31=0,'Rozpis úklidu'!M31*B41/60,'Rozpis úklidu'!N31*B41/60)","v":0},{"$f":"CONCATENATE('Rozpis úklidu'!L31,\" (v průběhu pobytu)\")","v":"Úklidová činnost č. 9 (v průběhu pobytu)"},{"$f":"'Rozpis úklidu'!P31*F41","v":0},0,{"$f":"IF(F41<B41,(B41-F41)*('Rozpis úklidu'!P31)*2,0)","v":0}]
[{"$f":"CONCATENATE('Rozpis úklidu'!A32,\" (\",'Rozpis úklidu'!D32*'Rozpis úklidu'!G32,\")\")","v":"třílůžkový pokoj- buňka -  HOTEL (1)"},0,{"$f":"IF('Rozpis úklidu'!N32=0,'Rozpis úklidu'!M32*B42/60,'Rozpis úklidu'!N32*B42/60)","v":0},{"$f":"CONCATENATE('Rozpis úklidu'!L32,\" (v průběhu pobytu)\")","v":"Úklidová činnost č. 9 (v průběhu pobytu)"},{"$f":"'Rozpis úklidu'!P32*F42","v":0},{"$f":"B42","v":0},{"$f":"IF(F42<B42,(B42-F42)*('Rozpis úklidu'!P32)*2,0)","v":0}]
[{"$f":"CONCATENATE('Rozpis úklidu'!A33,\" (\",'Rozpis úklidu'!D33*'Rozpis úklidu'!G33,\")\")","v":"chodba+kuchyňka- buňka -  HOTEL (1)"},0,{"$f":"IF('Rozpis úklidu'!N33=0,'Rozpis úklidu'!M33*B43/60,'Rozpis úklidu'!N33*B43/60)","v":0},{"$f":"'Rozpis úklidu'!L33","v":"Úklidová činnost č. 5"},{"$f":"'Rozpis úklidu'!P33*F43","v":0},0,{"$f":"IF(F43<B43,(B43-F43)*('Rozpis úklidu'!P33)*2,0)","v":0}]
[{"$f":"CONCATENATE('Rozpis úklidu'!A34,\" (\",'Rozpis úklidu'!D34*'Rozpis úklidu'!G34,\")\")","v":"sprcha - buňka -  HOTEL (4)"},0,{"$f":"IF('Rozpis úklidu'!N34=0,'Rozpis úklidu'!M34*B44/60,'Rozpis úklidu'!N34*B44/60)","v":0},{"$f":"'Rozpis úklidu'!L34","v":"Úklidová činnost č. 15"},{"$f":"'Rozpis úklidu'!P34*F44","v":0},0,{"$f":"IF(F44<B44,(B44-F44)*('Rozpis úklidu'!P34)*2,0)","v":0}]
[{"$f":"CONCATENATE('Rozpis úklidu'!A35,\" (\",'Rozpis úklidu'!D35*'Rozpis úklidu'!G35,\")\")","v":"WC - buňka -  HOTEL (4)"},0,{"$f":"IF('Rozpis úklidu'!N35=0,'Rozpis úklidu'!M35*B45/60,'Rozpis úklidu'!N35*B45/60)","v":0},{"$f":"'Rozpis úklidu'!L35","v":"Úklidová činnost č. 14"},{"$f":"'Rozpis úklidu'!P35*F45","v":0},0,{"$f":"IF(F45<B45,(B45-F45)*('Rozpis úklidu'!P35)*2,0)","v":0}]
[{"$f":"CONCATENATE('Rozpis úklidu'!A36,\" (\",'Rozpis úklidu'!D36*'Rozpis úklidu'!G36,\")\")","v":"jednolůžkový samostatný -  HOTEL (1)"},0,{"$f":"IF('Rozpis úklidu'!N36=0,'Rozpis úklidu'!M36*B46/60,'Rozpis úklidu'!N36*B46/60)","v":0},{"$f":"CONCATENATE('Rozpis úklidu'!L36,\" (po odjezdu)\")","v":"Úklidová činnost č. 8 (po odjezdu)"},{"$f":"'Rozpis úklidu'!P36*F46","v":0},0,{"$f":"IF(F46<B46,(B46-F46)*('Rozpis úklidu'!P36)*2,0)","v":0}]
[{"$f":"CONCATENATE('Rozpis úklidu'!A37,\" (\",'Rozpis úklidu'!D37*'Rozpis úklidu'!G37,\")\")","v":"dvoulůžkový samostatný -  HOTEL (2)"},0,{"$f":"IF('Rozpis úklidu'!N37=0,'Rozpis úklidu'!M37*B47/60,'Rozpis úklidu'!N37*B47/60)","v":0},{"$f":"CONCATENATE('Rozpis úklidu'!L37,\" (po odjezdu)\")","v":"Úklidová činnost č. 8 (po odjezdu)"},{"$f":"'Rozpis úklidu'!P37*F47","v":0},0,{"$f":"IF(F47<B47,(B47-F47)*('Rozpis úklidu'!P37)*2,0)","v":0}]
[{"$f":"CONCATENATE('Rozpis úklidu'!A38,\" (\",'Rozpis úklidu'!D38*'Rozpis úklidu'!G38,\")\")","v":"trojlůžkový samostatný -  HOTEL (1)"},0,{"$f":"IF('Rozpis úklidu'!N38=0,'Rozpis úklidu'!M38*B48/60,'Rozpis úklidu'!N38*B48/60)","v":0},{"$f":"CONCATENATE('Rozpis úklidu'!L38,\" (po odjezdu)\")","v":"Úklidová činnost č. 8 (po odjezdu)"},{"$f":"'Rozpis úklidu'!P38*F48","v":0},0,{"$f":"IF(F48<B48,(B48-F48)*('Rozpis úklidu'!P38)*2,0)","v":0}]
[{"$f":"CONCATENATE('Rozpis úklidu'!A39,\" (\",'Rozpis úklidu'!D39*'Rozpis úklidu'!G39,\")\")","v":"jednolůžkový samostatný -  HOTEL (1)"},0,{"$f":"IF('Rozpis úklidu'!N39=0,'Rozpis úklidu'!M39*B49/60,'Rozpis úklidu'!N39*B49/60)","v":0},{"$f":"CONCATENATE('Rozpis úklidu'!L39,\" (v průběhu pobytu)\")","v":"Úklidová činnost č. 9 (v průběhu pobytu)"},{"$f":"'Rozpis úklidu'!P39*F49","v":0},0,{"$f":"IF(F49<B49,(B49-F49)*('Rozpis úklidu'!P39)*2,0)","v":0}]
[{"$f":"CONCATENATE('Rozpis úklidu'!A40,\" (\",'Rozpis úklidu'!D40*'Rozpis úklidu'!G40,\")\")","v":"dvoulůžkový samostatný -  HOTEL (2)"},0,{"$f":"IF('Rozpis úklidu'!N40=0,'Rozpis úklidu'!M40*B50/60,'Rozpis úklidu'!N40*B50/60)","v":0},{"$f":"CONCATENATE('Rozpis úklidu'!L40,\" (v průběhu pobytu)\")","v":"Úklidová činnost č. 9 (v průběhu pobytu)"},{"$f":"'Rozpis úklidu'!P40*F50","v":0},0,{"$f":"IF(F50<B50,(B50-F50)*('Rozpis úklidu'!P40)*2,0)","v":0}]
[{"$f":"CONCATENATE('Rozpis úklidu'!A41,\" (\",'Rozpis úklidu'!D41*'Rozpis úklidu'!G41,\")\")","v":"trojlůžkový samostatný -  HOTEL (1)"},0,{"$f":"IF('Rozpis úklidu'!N41=0,'Rozpis úklidu'!M41*B51/60,'Rozpis úklidu'!N41*B51/60)","v":0},{"$f":"CONCATENATE('Rozpis úklidu'!L41,\" (v průběhu pobytu)\")","v":"Úklidová činnost č. 9 (v průběhu pobytu)"},{"$f":"'Rozpis úklidu'!P41*F51","v":0},0,{"$f":"IF(F51<B51,(B51-F51)*('Rozpis úklidu'!P41)*2,0)","v":0}]
[null,"Denní ekvivalent:",{"$f":"SUM(C26:C51)/5","v":1.4833333333333332},"K FAKTURACI CELKEM:",{"$f":"SUM(E26:E51)","v":0},null,{"$f":"SUM(G26:G51)","v":0}]
["Podpis vedoucí směny:",null,null,"Podpis zástupce vedení koleje:"]
[]
["Karta úklidu",null,null,{"$f":"'Rozpis úklidu'!$A$1","v":"kolej: Rooseveltova, VŠE"}]
["MĚSÍČNÍ ÚKLID                 MĚSÍC:",{"$f":"MONTH(D56)","v":3},null,{"$f":"NOW()","v":"2022-03-30T08:13:07.050"}]
[{"$f":"'Rozpis úklidu'!$A$3","v":"Úklidová jednotka"},{"$f":"'Rozpis úklidu'!$D$3","v":"počet\núklidových jednotek"},"Doba úklidu\n[hod.]",{"$f":"'Rozpis úklidu'!$L$3","v":"Popis činnosti"},{"$f":"'Rozpis úklidu'!$Q$3","v":"cena celkem za všechny úklidové jednotky \n(prac. dny)\n[Kč]"},"Správně\nuklizené\njednotky","Smluvní pokuta\n[Kč]","Poznámka"]
[{"$f":"CONCATENATE('Rozpis úklidu'!A42,\" (\",'Rozpis úklidu'!D42*'Rozpis úklidu'!G42,\")\")","v":"kanceláře+zázemí (1)"},{"$f":"'Rozpis úklidu'!D42*'Rozpis úklidu'!G42","v":1},{"$f":"IF('Rozpis úklidu'!N42=0,'Rozpis úklidu'!M42*B58/60,'Rozpis úklidu'!N42*B58/60)","v":0.16666666666666666},{"$f":"'Rozpis úklidu'!L42","v":"Úklidová činnost č. 3"},{"$f":"'Rozpis úklidu'!P42*F58","v":0},{"$f":"B58","v":1},{"$f":"IF(F58<B58,(B58-F58)*('Rozpis úklidu'!P42)*2,0)","v":0}]
[{"$f":"CONCATENATE('Rozpis úklidu'!A43,\" (\",'Rozpis úklidu'!D43*'Rozpis úklidu'!G43,\")\")","v":"sklad lůžkovin (1)"},{"$f":"'Rozpis úklidu'!D43*'Rozpis úklidu'!G43","v":1},{"$f":"IF('Rozpis úklidu'!N43=0,'Rozpis úklidu'!M43*B59/60,'Rozpis úklidu'!N43*B59/60)","v":0.1},{"$f":"'Rozpis úklidu'!L43","v":"Úklidová činnost č. 3"},{"$f":"'Rozpis úklidu'!P43*F59","v":0},{"$f":"B59","v":1},{"$f":"IF(F59<B59,(B59-F59)*('Rozpis úklidu'!P43)*2,0)","v":0}]
[{"$f":"CONCATENATE('Rozpis úklidu'!A44,\" (\",'Rozpis úklidu'!D44*'Rozpis úklidu'!G44,\")\")","v":"sklad- čistící prostředky (1)"},{"$f":"'Rozpis úklidu'!D44*'Rozpis úklidu'!G44","v":1},{"$f":"IF('Rozpis úklidu'!N44=0,'Rozpis úklidu'!M44*B60/60,'Rozpis úklidu'!N44*B60/60)","v":0.13333333333333333},{"$f":"'Rozpis úklidu'!L44","v":"Úklidová činnost č. 3"},{"$f":"'Rozpis úklidu'!P44*F60","v":0},1,{"$f":"IF(F60<B60,(B60-F60)*('Rozpis úklidu'!P44)*2,0)","v":0}]
[null,"Denní ekvivalent:",{"$f":"SUM(C58:C60)/20","v":0.02},"K FAKTURACI CELKEM:",{"$f":"SUM(E58:E60)","v":0},null,{"$f":"SUM(G58:G59)","v":0}]
["Podpis vedoucí směny:",null,null,"Podpis zástupce vedení koleje:"]
[]
["Karta úklidu",null,null,{"$f":"'Rozpis úklidu'!$A$1","v":"kolej: Rooseveltova, VŠE"}]
["SEZONNÍ ÚKLID                 MĚSÍC:",{"$f":"MONTH(D65)","v":3},null,{"$f":"(NOW())","v":"2022-03-30T08:13:07.050"}]
[{"$f":"'Rozpis úklidu'!$A$3","v":"Úklidová jednotka"},{"$f":"'Rozpis úklidu'!$D$3","v":"počet\núklidových jednotek"},null,{"$f":"'Rozpis úklidu'!$L$3","v":"Popis činnosti"},{"$f":"'Rozpis úklidu'!$Q$3","v":"cena celkem za všechny úklidové jednotky \n(prac. dny)\n[Kč]"},"Správně\nuklizené\njednotky","Smluvní pokuta\n[Kč]","Poznámka"]
[{"$f":"CONCATENATE('Rozpis úklidu'!A46,\" (\",'Rozpis úklidu'!F46,\")\")","v":"jednolůžkový pokoj (buňka) (sezonně)"},0,{"$f":"IF('Rozpis úklidu'!N46=0,'Rozpis úklidu'!M46*B67/60,'Rozpis úklidu'!N46*B67/60)","v":0},{"$f":"'Rozpis úklidu'!L46","v":"Úklidová činnost č. 6"},{"$f":"'Rozpis úklidu'!P46*F67","v":0},{"$f":"B67","v":0},{"$f":"IF(F67<B67,(B67-F67)*('Rozpis úklidu'!P46)*2,0)","v":0}]
[{"$f":"CONCATENATE('Rozpis úklidu'!A47,\" (\",'Rozpis úklidu'!F47,\")\")","v":"dvoulůžkový pokoj (buňka) (sezonně)"},0,{"$f":"IF('Rozpis úklidu'!N47=0,'Rozpis úklidu'!M47*B68/60,'Rozpis úklidu'!N47*B68/60)","v":0},{"$f":"'Rozpis úklidu'!L47","v":"Úklidová činnost č. 6"},{"$f":"'Rozpis úklidu'!P47*F68","v":0},{"$f":"B68","v":0},{"$f":"IF(F68<B68,(B68-F68)*('Rozpis úklidu'!P47)*2,0)","v":0}]
[{"$f":"CONCATENATE('Rozpis úklidu'!A48,\" (\",'Rozpis úklidu'!F48,\")\")","v":"třílůžkový pokoj (buňka) (sezonně)"},0,{"$f":"IF('Rozpis úklidu'!N48=0,'Rozpis úklidu'!M48*B69/60,'Rozpis úklidu'!N48*B69/60)","v":0},{"$f":"'Rozpis úklidu'!L48","v":"Úklidová činnost č. 6"},{"$f":"'Rozpis úklidu'!P48*F69","v":0},0,{"$f":"IF(F69<B69,(B69-F69)*('Rozpis úklidu'!P48)*2,0)","v":0}]
[{"$f":"CONCATENATE('Rozpis úklidu'!A49,\" (\",'Rozpis úklidu'!F49,\")\")","v":"chodba + kuchyňka - buňka (sezonně)"},0,{"$f":"IF('Rozpis úklidu'!N49=0,'Rozpis úklidu'!M49*B70/60,'Rozpis úklidu'!N49*B70/60)","v":0},{"$f":"'Rozpis úklidu'!L49","v":"Úklidová činnost č. 5"},{"$f":"'Rozpis úklidu'!P49*F70","v":0},0,{"$f":"IF(F70<B70,(B70-F70)*('Rozpis úklidu'!P49)*2,0)","v":0}]
[{"$f":"CONCATENATE('Rozpis úklidu'!A50,\" (\",'Rozpis úklidu'!F50,\")\")","v":"sprcha - buňka (sezonně)"},0,{"$f":"IF('Rozpis úklidu'!N50=0,'Rozpis úklidu'!M50*B71/60,'Rozpis úklidu'!N50*B71/60)","v":0},{"$f":"'Rozpis úklidu'!L50","v":"Úklidová činnost č. 15"},{"$f":"'Rozpis úklidu'!P50*F71","v":0},0,{"$f":"IF(F71<B71,(B71-F71)*('Rozpis úklidu'!P50)*2,0)","v":0}]
[{"$f":"CONCATENATE('Rozpis úklidu'!A51,\" (\",'Rozpis úklidu'!F51,\")\")","v":"WC - buňka (sezonně)"},0,{"$f":"IF('Rozpis úklidu'!N51=0,'Rozpis úklidu'!M51*B72/60,'Rozpis úklidu'!N51*B72/60)","v":0},{"$f":"'Rozpis úklidu'!L51","v":"Úklidová činnost č. 14"},{"$f":"'Rozpis úklidu'!P51*F72","v":0},0,{"$f":"IF(F72<B72,(B72-F72)*('Rozpis úklidu'!P51)*2,0)","v":0}]
[{"$f":"CONCATENATE('Rozpis úklidu'!A52,\" (\",'Rozpis úklidu'!F52,\")\")","v":"jednolůžkový samostatný (sezonně)"},0,{"$f":"IF('Rozpis úklidu'!N52=0,'Rozpis úklidu'!M52*B73/60,'Rozpis úklidu'!N52*B73/60)","v":0},{"$f":"'Rozpis úklidu'!L52","v":"Úklidová činnopst č. 6"},{"$f":"'Rozpis úklidu'!P52*F73","v":0},0,{"$f":"IF(F73<B73,(B73-F73)*('Rozpis úklidu'!P52)*2,0)","v":0}]
[{"$f":"CONCATENATE('Rozpis úklidu'!A53,\" (\",'Rozpis úklidu'!F53,\")\")","v":"dvoulůžkový samostatný (sezonně)"},0,{"$f":"IF('Rozpis úklidu'!N53=0,'Rozpis úklidu'!M53*B74/60,'Rozpis úklidu'!N53*B74/60)","v":0},{"$f":"'Rozpis úklidu'!L53","v":"Úklidová činnopst č. 6"},{"$f":"'Rozpis úklidu'!P53*F74","v":0},0,{"$f":"IF(F74<B74,(B74-F74)*('Rozpis úklidu'!P53)*2,0)","v":0}]
[{"$f":"CONCATENATE('Rozpis úklidu'!A54,\" (\",'Rozpis úklidu'!F54,\")\")","v":"trojlůžkový samostatný (sezonně)"},0,{"$f":"IF('Rozpis úklidu'!N54=0,'Rozpis úklidu'!M54*B75/60,'Rozpis úklidu'!N54*B75/60)","v":0},{"$f":"'Rozpis úklidu'!L54","v":"Úklidová činnopst č. 6"},{"$f":"'Rozpis úklidu'!P54*F75","v":0},0,{"$f":"IF(F75<B75,(B75-F75)*('Rozpis úklidu'!P54)*2,0)","v":0}]
[{"$f":"CONCATENATE('Rozpis úklidu'!A55,\" (\",'Rozpis úklidu'!F55,\")\")","v":"přebrání pokoje po ubytovaných (sezonně)"},0,{"$f":"IF('Rozpis úklidu'!N55=0,'Rozpis úklidu'!M55*B76/60,'Rozpis úklidu'!N55*B76/60)","v":0},{"$f":"'Rozpis úklidu'!L55","v":"Úklidová činnost č. 10"},{"$f":"'Rozpis úklidu'!P55*F76","v":0},0,{"$f":"IF(F76<B76,(B76-F76)*('Rozpis úklidu'!P55)*2,0)","v":0}]
[null,null,{"$f":"SUM(C67:C76)","v":0},"K FAKTURACI CELKEM:",{"$f":"SUM(E67:E76)","v":0},null,{"$f":"SUM(G67:G76)","v":0}]
["Podpis vedoucí směny:",null,null,"Podpis zástupce vedení koleje:"]
[]
["Karta úklidu",null,null,{"$f":"'Rozpis úklidu'!$A$1","v":"kolej: Rooseveltova, VŠE"}]
["ÚKLID O VÍKENDU                 DNE:",{"$f":"(NOW())","v":"2022-03-30T08:13:07.050"}]
[{"$f":"'Rozpis úklidu'!$A$3","v":"Úklidová jednotka"},{"$f":"'Rozpis úklidu'!$D$3","v":"počet\núklidových jednotek"},null,{"$f":"'Rozpis úklidu'!$L$3","v":"Popis činnosti"},"cena celkem za všechny úklidové jednotky \n(VÍKEND)\n[Kč]","Správně\nuklizené\njednotky","Smluvní pokuta\n[Kč]","Poznámka"]
[{"$f":"CONCATENATE('Rozpis úklidu'!A27,\" (\",'Rozpis úklidu'!D27*'Rozpis úklidu'!G27,\")\")","v":"dvoulůžkový pokoj- buňka -  HOTEL (4)"},0,{"$f":"IF('Rozpis úklidu'!N27=0,'Rozpis úklidu'!M27*B83/60,'Rozpis úklidu'!N27*B83/60)","v":0},{"$f":"CONCATENATE('Rozpis úklidu'!L27,\" (po odjezdu)\")","v":"Úklidová činnost č. 8 (po odjezdu)"},{"$f":"'Rozpis úklidu'!P27*F83*'Základní údaje'!$C$11","v":0},{"$f":"B83","v":0},{"$f":"IF(F83<B83,(B83-F83)*('Rozpis úklidu'!P27)*2,0)","v":0}]
[{"$f":"CONCATENATE('Rozpis úklidu'!A28,\" (\",'Rozpis úklidu'!D28*'Rozpis úklidu'!G28,\")\")","v":"jedolůžkový pokoj- buňka -  HOTEL (1)"},0,{"$f":"IF('Rozpis úklidu'!N28=0,'Rozpis úklidu'!M28*B84/60,'Rozpis úklidu'!N28*B84/60)","v":0},{"$f":"CONCATENATE('Rozpis úklidu'!L28,\" (po odjezdu)\")","v":"Úklidová činnost č. 8 (po odjezdu)"},{"$f":"'Rozpis úklidu'!P28*F84*'Základní údaje'!$C$11","v":0},{"$f":"B84","v":0},{"$f":"IF(F84<B84,(B84-F84)*('Rozpis úklidu'!P28)*2,0)","v":0}]
[{"$f":"CONCATENATE('Rozpis úklidu'!A29,\" (\",'Rozpis úklidu'!D29*'Rozpis úklidu'!G29,\")\")","v":"třílůžkový pokoj- buňka -  HOTEL (1)"},0,{"$f":"IF('Rozpis úklidu'!N29=0,'Rozpis úklidu'!M29*B85/60,'Rozpis úklidu'!N29*B85/60)","v":0},{"$f":"CONCATENATE('Rozpis úklidu'!L29,\" (po odjezdu)\")","v":"Úklidová činnost č. 8 (po odjezdu)"},{"$f":"'Rozpis úklidu'!P29*F85*'Základní údaje'!$C$11","v":0},0,{"$f":"IF(F85<B85,(B85-F85)*('Rozpis úklidu'!P29)*2,0)","v":0}]
[{"$f":"CONCATENATE('Rozpis úklidu'!A30,\" (\",'Rozpis úklidu'!D30*'Rozpis úklidu'!G30,\")\")","v":"dvoulůžkový pokoj- buňka -  HOTEL (4)"},0,{"$f":"IF('Rozpis úklidu'!N30=0,'Rozpis úklidu'!M30*B86/60,'Rozpis úklidu'!N30*B86/60)","v":0},{"$f":"CONCATENATE('Rozpis úklidu'!L30,\" (v průběhu pobytu)\")","v":"Úklidová činnost č. 9 (v průběhu pobytu)"},{"$f":"'Rozpis úklidu'!P30*F86*'Základní údaje'!$C$11","v":0},0,{"$f":"IF(F86<B86,(B86-F86)*('Rozpis úklidu'!P30)*2,0)","v":0}]
[{"$f":"CONCATENATE('Rozpis úklidu'!A31,\" (\",'Rozpis úklidu'!D31*'Rozpis úklidu'!G31,\")\")","v":"jedolůžkový pokoj- buňka -  HOTEL (1)"},0,{"$f":"IF('Rozpis úklidu'!N31=0,'Rozpis úklidu'!M31*B87/60,'Rozpis úklidu'!N31*B87/60)","v":0},{"$f":"CONCATENATE('Rozpis úklidu'!L31,\" (v průběhu pobytu)\")","v":"Úklidová činnost č. 9 (v průběhu pobytu)"},{"$f":"'Rozpis úklidu'!P31*F87*'Základní údaje'!$C$11","v":0},0,{"$f":"IF(F87<B87,(B87-F87)*('Rozpis úklidu'!P31)*2,0)","v":0}]
[{"$f":"CONCATENATE('Rozpis úklidu'!A32,\" (\",'Rozpis úklidu'!D32*'Rozpis úklidu'!G32,\")\")","v":"třílůžkový pokoj- buňka -  HOTEL (1)"},0,{"$f":"IF('Rozpis úklidu'!N32=0,'Rozpis úklidu'!M32*B88/60,'Rozpis úklidu'!N32*B88/60)","v":0},{"$f":"CONCATENATE('Rozpis úklidu'!L32,\" (v průběhu pobytu)\")","v":"Úklidová činnost č. 9 (v průběhu pobytu)"},{"$f":"'Rozpis úklidu'!P32*F88*'Základní údaje'!$C$11","v":0},0,{"$f":"IF(F88<B88,(B88-F88)*('Rozpis úklidu'!P32)*2,0)","v":0}]
[{"$f":"CONCATENATE('Rozpis úklidu'!A33,\" (\",'Rozpis úklidu'!D33*'Rozpis úklidu'!G33,\")\")","v":"chodba+kuchyňka- buňka -  HOTEL (1)"},0,{"$f":"IF('Rozpis úklidu'!N33=0,'Rozpis úklidu'!M33*B89/60,'Rozpis úklidu'!N33*B89/60)","v":0},{"$f":"'Rozpis úklidu'!L33","v":"Úklidová činnost č. 5"},{"$f":"'Rozpis úklidu'!P33*F89*'Základní údaje'!$C$11","v":0},0,{"$f":"IF(F89<B89,(B89-F89)*('Rozpis úklidu'!P33)*2,0)","v":0}]
[{"$f":"CONCATENATE('Rozpis úklidu'!A34,\" (\",'Rozpis úklidu'!D34*'Rozpis úklidu'!G34,\")\")","v":"sprcha - buňka -  HOTEL (4)"},0,{"$f":"IF('Rozpis úklidu'!N34=0,'Rozpis úklidu'!M34*B90/60,'Rozpis úklidu'!N34*B90/60)","v":0},{"$f":"'Rozpis úklidu'!L34","v":"Úklidová činnost č. 15"},{"$f":"'Rozpis úklidu'!P34*F90*'Základní údaje'!$C$11","v":0},0,{"$f":"IF(F90<B90,(B90-F90)*('Rozpis úklidu'!P34)*2,0)","v":0}]
[{"$f":"CONCATENATE('Rozpis úklidu'!A35,\" (\",'Rozpis úklidu'!D35*'Rozpis úklidu'!G35,\")\")","v":"WC - buňka -  HOTEL (4)"},0,{"$f":"IF('Rozpis úklidu'!N35=0,'Rozpis úklidu'!M35*B91/60,'Rozpis úklidu'!N35*B91/60)","v":0},{"$f":"'Rozpis úklidu'!L35","v":"Úklidová činnost č. 14"},{"$f":"'Rozpis úklidu'!P35*F91*'Základní údaje'!$C$11","v":0},0,{"$f":"IF(F91<B91,(B91-F91)*('Rozpis úklidu'!P35)*2,0)","v":0}]
[{"$f":"CONCATENATE('Rozpis úklidu'!A36,\" (\",'Rozpis úklidu'!D36*'Rozpis úklidu'!G36,\")\")","v":"jednolůžkový samostatný -  HOTEL (1)"},0,{"$f":"IF('Rozpis úklidu'!N36=0,'Rozpis úklidu'!M36*B92/60,'Rozpis úklidu'!N36*B92/60)","v":0},{"$f":"CONCATENATE('Rozpis úklidu'!L36,\" (po odjezdu)\")","v":"Úklidová činnost č. 8 (po odjezdu)"},{"$f":"'Rozpis úklidu'!P36*F92*'Základní údaje'!$C$11","v":0},0,{"$f":"IF(F92<B92,(B92-F92)*('Rozpis úklidu'!P36)*2,0)","v":0}]
[{"$f":"CONCATENATE('Rozpis úklidu'!A37,\" (\",'Rozpis úklidu'!D37*'Rozpis úklidu'!G37,\")\")","v":"dvoulůžkový samostatný -  HOTEL (2)"},0,{"$f":"IF('Rozpis úklidu'!N37=0,'Rozpis úklidu'!M37*B93/60,'Rozpis úklidu'!N37*B93/60)","v":0},{"$f":"CONCATENATE('Rozpis úklidu'!L37,\" (po odjezdu)\")","v":"Úklidová činnost č. 8 (po odjezdu)"},{"$f":"'Rozpis úklidu'!P37*F93*'Základní údaje'!$C$11","v":0},0,{"$f":"IF(F93<B93,(B93-F93)*('Rozpis úklidu'!P37)*2,0)","v":0}]
[{"$f":"CONCATENATE('Rozpis úklidu'!A38,\" (\",'Rozpis úklidu'!D38*'Rozpis úklidu'!G38,\")\")","v":"trojlůžkový samostatný -  HOTEL (1)"},0,{"$f":"IF('Rozpis úklidu'!N38=0,'Rozpis úklidu'!M38*B94/60,'Rozpis úklidu'!N38*B94/60)","v":0},{"$f":"CONCATENATE('Rozpis úklidu'!L38,\" (po odjezdu)\")","v":"Úklidová činnost č. 8 (po odjezdu)"},{"$f":"'Rozpis úklidu'!P38*F94*'Základní údaje'!$C$11","v":0},0,{"$f":"IF(F94<B94,(B94-F94)*('Rozpis úklidu'!P38)*2,0)","v":0}]
[{"$f":"CONCATENATE('Rozpis úklidu'!A39,\" (\",'Rozpis úklidu'!D39*'Rozpis úklidu'!G39,\")\")","v":"jednolůžkový samostatný -  HOTEL (1)"},0,{"$f":"IF('Rozpis úklidu'!N39=0,'Rozpis úklidu'!M39*B95/60,'Rozpis úklidu'!N39*B95/60)","v":0},{"$f":"CONCATENATE('Rozpis úklidu'!L39,\" (v průběhu pobytu)\")","v":"Úklidová činnost č. 9 (v průběhu pobytu)"},{"$f":"'Rozpis úklidu'!P39*F95*'Základní údaje'!$C$11","v":0},0,{"$f":"IF(F95<B95,(B95-F95)*('Rozpis úklidu'!P39)*2,0)","v":0}]
[{"$f":"CONCATENATE('Rozpis úklidu'!A40,\" (\",'Rozpis úklidu'!D40*'Rozpis úklidu'!G40,\")\")","v":"dvoulůžkový samostatný -  HOTEL (2)"},0,{"$f":"IF('Rozpis úklidu'!N40=0,'Rozpis úklidu'!M40*B96/60,'Rozpis úklidu'!N40*B96/60)","v":0},{"$f":"CONCATENATE('Rozpis úklidu'!L40,\" (v průběhu pobytu)\")","v":"Úklidová činnost č. 9 (v průběhu pobytu)"},{"$f":"'Rozpis úklidu'!P40*F96*'Základní údaje'!$C$11","v":0},0,{"$f":"IF(F96<B96,(B96-F96)*('Rozpis úklidu'!P40)*2,0)","v":0}]
[{"$f":"CONCATENATE('Rozpis úklidu'!A41,\" (\",'Rozpis úklidu'!D41*'Rozpis úklidu'!G41,\")\")","v":"trojlůžkový samostatný -  HOTEL (1)"},0,{"$f":"IF('Rozpis úklidu'!N41=0,'Rozpis úklidu'!M41*B97/60,'Rozpis úklidu'!N41*B97/60)","v":0},{"$f":"CONCATENATE('Rozpis úklidu'!L41,\" (v průběhu pobytu)\")","v":"Úklidová činnost č. 9 (v průběhu pobytu)"},{"$f":"'Rozpis úklidu'!P41*F97*'Základní údaje'!$C$11","v":0},0,{"$f":"IF(F97<B97,(B97-F97)*('Rozpis úklidu'!P41)*2,0)","v":0}]
[null,null,{"$f":"SUM(C83:C97)","v":0},"K FAKTURACI CELKEM:",{"$f":"SUM(E83:E97)","v":0},null,{"$f":"SUM(G83:G97)","v":0}]
["Podpis vedoucí směny:",null,null,"Podpis zástupce vedení koleje:"]

{"sheet":"Činnosti úklidu","index":3,"n_rows":35,"n_cols":2,"rows_kept":35,"cut":false,"hidden":false,"merged":[]}
[null,"Úklidová činnost"]
[null,"Úklidová činnost probíhá v čase od 07:00 hod. do 15.00 hod. v jednosměnném provozu v pětidenním pracovním týdnu, úklid hotelových pokojů musí být dle potřeby zajištěn i o víkendu. V době nastěhování a vystěhování studentů koncem letního semestru a začátkem zimního semestru stanovuje dobu pro úklid podle aktuálních potřeb vedoucí/zástupce vedoucí koleje a to včetně úklidu o víkendu. Při úklidu je potřeba používat úklidové, čistící a desinfekční prostředky vhodné pro daný předmět úklidu a dodržovat návody na použití příslušných úklidových, čistících a desinfekčních prostředků a bezpečnostní a hygienická pravidla"]
["Definice pojmů:"]
["Zametání","pomocí vhodného smetáku zamést dané podlahové plochy."]
["Vytírání ","pomocí mopu za použití vody a odpovídajícího saponátu vytřít dané podlahové plochy."]
["Mytí ","pomocí hadru, utěrky nebo houbičky, za použití vody a odpovídajícího saponátu, umýt plochy nábytku, dveří, spotřebičů, keramických a jiných obkladů, topení apod."]
["Čištění ","důkladné čištění, zvláště skvrn, za pomocí odpovídajících čisticích prostředků, ploch nábytku, dveří, spotřebičů, keramických a jiných obkladů, topení apod."]
["Desinfekce ","po umytí nebo vyčištění daných ploch, podlah, spotřebičů aj. použít podle návodu odpovídající desinfekční prostředek."]
["Leštění ","leštění všech skleněných a zrcadlových ploch za použití odpovídajícího přípravku na mytí a leštění skel."]
["Luxování ","čištění podlah za použití vysavače."]
["Strojové čištění ","se provádí za použití čistícího stroje na vodní nebo parní bázi (strojové čištění postelí, matrací, koberců apod.)."]
["Stírání prachu","setření prachu vhodnou utěrkou za použití odpovídajícího přípravku na odstranění prachu, odstranění pavučin."]
["Úklid odpadů ","řádné uvolnění, umytí, vyčištění a vydesinfikování odpadů na soc. zařízeních, WC, umývárnách a sprchových koutech za použití odpovídajících přípravků."]
["Mimořádný úklid ","úklid znečištěného WC (mimo mísu), umývárny nebo společných prostor zvratky nebo exkrementy (uklízečka vyrozumí vedoucí/zástupce vedoucí koleje)."]
["Mytí oken ","umytí parapetů na mokro za použití odpovídajícího saponátu, umytí rámů oken na mokro za použití odpovídajícího saponátu, umytí a vyleštění oken odpovídajícím přípravkem na mytí a leštění oken."]
["Zalévání květin ","zalití květin čistou odstátou vodou v přiměřeném množství s ohledem na druh rostliny. Podle potřeby použít odpovídající hnojivo v dávkování podle návodu k použití."]
["Vynášení a likvidace odpadu","vynesení odpadu ze všech odpadních nádob (i z prostoru okolo těchto nádob), a ze skartovaček, umytí odpadních nádob a doplnění pytlů na odpadky do odpadních nádob. Odpad dle možnosti vhodným způsobem třídit."]
["Doplňování hotelových potřeb ","v hotelovém provozu doplnit toaletní papír do zásobníků doplnit ručníky a hotelové mýdlo."]
[]
["Číslo typové činnosti","Popis typových pracovních činností:"]
["1.","Úklidem společných prostor, podlah chodeb, schodišť a vestibulu se rozumí:\nzamést a vytřít podlahy, odstranit našlapané žvýkačky a jiné nečistoty, vyluxovat podlahy kryté kobercem. Umýt parapety, zábradlí a hasicí přístroje umístěné na chodbách, vyleštit skleněné plochy na chodbách a ve vestibulech, setřít prach a pavučiny. Sepsat a nahlásit vedení koleje všechny závady a škody."]
["2.","Úklidem balkonů se rozumí: \nzamést a vytřít podlahy, odstranit našlapané žvýkačky a jiné nečistoty, umýt parapety a zábradlí. Odstranit pavučiny. Vynést odpady a popř. i vysypat popelníky."]
["3.","Úklidem společenských, (studoven, kluboven apod.) zájmových (posiloven, tělocvičen apod.) a zasedacích místností, kanceláří, skladů a šaten se rozumí:\nzamést a vytřít podlahy, podlahy pokryté kobercem vyluxovat, setřít prach a pavučiny ze všech dosažitelných a volně přístupných míst a zařízení místností (topení, cvičební nářadí apod.), umýt a vyčistit skvrny kolem klik, dveří, vypínačů a světel. Srovnat nábytek a jiné vybavení místností. Srovnat nebo dověsit záclony a závěsy. Vyleštit zrcadla. Vynést odpad. Sepsat a nahlásit vedení koleje všechny závady a škody."]
["4.","Úklidem prádelen se rozumí:\nzamést a vytřít podlahy, setřít prach a pavučiny ze všech dosažitelných a volně přístupných míst a zařízení místností (praček, topení, apod.). Vyčistit filtry praček, vyčistit zásobníky na prášek. Umýt a vyčistit dveře, kliky, vypínače a světla. Srovnat nebo dověsit záclony a závěsy. Vyleštit zrcadla. Vynést odpad. Sepsat a nahlásit vedení koleje všechny závady a škody."]
["5.","Úklidem kuchyněk se rozumí:\numýt, vyčistit a vydesinfikovat sporák, vařič, mikrovlnnou troubu, digestoř, pracovní desky a zařízení místnosti kuchyňky. Umýt, vyčistit a vydesinfikovat obklady. Pokud je kuchyňka vybavena nádobím umýt nádobí. Odmrazit a vyčistit lednici. Odstranit všechny prošlé nebo kazící se potraviny. Zamést a vytřít podlahy. Vynést odpad. Setřít prach a pavučiny. Sepsat a nahlásit vedení koleje všechny závady a škody."]
["6.","Generálním úklidem pokojů po odchodu studentů se rozumí:\numýt nábytek z venku (postele, stoly, židle, police, skříně apod.) i zevnitř (skříně, šuplíky, peřináče, postele apod.) a vyčistit od skvrn. Vyleštit zrcadla a okna. Vyluxovat/strojově vyčistit matrace postelí. Setřít prach a pavučiny (včetně žaluzií). Umýt a vyčistit veškeré obložení, lišty, obrazy, dveře, kliky, rámy oken, parapety, vypínače, zásuvky, topení, světla, lampičky apod. Umýt ledničku zevnitř i zvenku. Zamést a vytřít podlahy, podlahy kryté kobercem vyluxovat, a to i pod a za postelí, křesly a závěsy. Srovnat nebo dověsit záclony a závěsy, srovnat nábytek a jiné vybavení pokoje. Vynést odpad, umýt, otřít a vyleštit odpadkový koš. Zlikvidovat případné komáry a mouchy. Vyvětrat a popř. i navonět. Sepsat a nahlásit vedení koleje všechny závady a škody. Případné nalezené věci po ubytovaných předat vedení koleje."]
["7.","Úklidem předsíní buněk se rozumí:\núklid sociálního zařízení podle bodu 14. a 15. úklid kuchyňky podle bodu 5. Zamést a vytřít podlahy. Umýt a vyčistit pracovní plochy a nábytek. Setřít prach a pavučiny. Vynést odpad. Sepsat a nahlásit vedení koleje všechny závady a škody."]
["8.","Úklidem hotelových pokojů po vystěhování se rozumí:\numýt nábytek z venku (postele, stoly, židle, police, skříně apod.) i zevnitř (skříně, šuplíky, peřináče, postele apod.) a vyčistit od skvrn. Vyleštit zrcadla a okna. Převléct a ustlat postele, vyluxovat/strojově vyčistit matrace postelí. Setřít prach a pavučiny (včetně žaluzií). Umýt a vyčistit veškeré obložení, lišty, obrazy, dveře, kliky, rámy oken, parapety, vypínače, zásuvky, televizi, topení, světla, lampičky apod. Umýt nádobí. Umýt ledničku zevnitř i zvenku. Zamést a vytřít podlahy, podlahy kryté kobercem vyluxovat, a to i pod a za postelí, křesly a závěsy. Srovnat nebo dověsit záclony a závěsy, srovnat nábytek a jiné vybavení pokoje. Vynést odpad, umýt, otřít a vyleštit odpadkový koš. Zlikvidovat případné komáry a mouchy. Doplnit hotelové potřeby. Vyvětrat a popř. i navonět. Předat složené použité prádlo a ručníky skladní. Sepsat a nahlásit vedení koleje všechny závady a škody. Případné nalezené věci po hostech předat vedení koleje."]
["9.","Úklidem hotelových pokojů v průběhu ubytování se rozumí:\nustlání postelí, popř. výměna ložního prádla každý 4. den pobytu, výměna osušek a ručníků, doplnění toaletního papíru, vynesení odpadků, umytí koupelny (sprchový kout, WC, umyvadlo), vytření podlahy."]
["10.","Přebráním uklizeného pokoje po studentech se rozumí:\npodle bodu 6. a 7. zkontrolovat úklid provedený studenty. Přebrat klíče od pokoje. Podepsat potvrzení o řádně provedeném úklidu a odevzdání klíčů. Sepsat a nahlásit vedení koleje všechny závady a škody. V případě nutnosti upozornit studenty na nedostatky v úklidu s tím, že je musí ve stanovené době odstranit, po té provést novou kontrolu úklidu. V případě, že ani napodruhé nebude pokoj řádně uklizen nahlásit tuto skutečnost vedení koleje."]
["11.","Úklidem výtahu se rozumí:\nzametení a vytření podlahy, vyčištění dveřních drážek, mytí stěn, mytí světel, jsou li instalována vyleštění zrcadel."]
["12.","Mytím oken se rozumí:\nmytí a leštění skel, mytí rámů, mytí parapetu, jsou-li instalovány setření žaluzií."]
["13.","Čištěním matrací:\nvyčištění matrací parním strojem."]
["14.","Úklidem WC se rozumí:\numýt, vyčistit a vydesinfikovat místnost WC, umýt záchodovou mísu zevnitř i zvenku umýt nohu a trubku za WC, umýt prkýnko a nádobu na splachovací vodu, popř. umýt pisoáry, umyvadla, baterie, obklady, odpady, podlahy a dveře. Otřít držák na toaletní papír. Umýt dlaždičky a silikon od plísně. Vylít vodu a otřít pouzdro na WC štětku. Vyleštit zrcadla. Vynést odpad. Setřít prach a pavučiny. Vždy za použití odpovídajícího mycího/čistícího přípravku."]
["15.","Úklidem koupelen a sprch se rozumí:\numýt, vyčistit a vydesinfikovat umyvadlo zevnitř i zvenku včetně trubek pod ním, baterie, sprchový kout, obklady, poličku nad umyvadlem i ve sprchovém koutě, odpady, podlahy a dveře. Umýt stěny sprchového koutu, gumové těsnění popř. závěs sprchového koutu. Odstranit rez a vodní kámen. Vynést odpad. Vyleštit zrcadlo, poličku, sprchu a držák na sprchu. Umýt dlaždičky a silikon od plísně. Vynést odpad. Setřít prach a pavučiny. Vždy za použití odpovídajícího mycího/čistícího přípravku"]